Workbook

Sheet 作业进度一览
H1: ="总："&SUM(H3:H163)&"人日"&" = "&ROUND(SUM(H3:H163)/20,2)&"人月" -> 总：891.1人日 = 44.56人月 | K1: ="完成："&ROUND((SUM(H3:H92)-SUM(L3:L92))/SUM(H3:H92),4)*100&"%" -> 完成：72.63%
B2: No | C2: 功能模块 | D2: 画面名 | E2: 表示方式 | F2: 主要功能点 | G2: 优先级 | H2: 工作量 | I2: 责任者 | J2: 计划期限 | K2: 进度 | L2: 剩余工作量 | M2: 后续作业内内容（20220927记入）
B3: =ROW()-2 -> 1 | C3: 0.共通部分 | D3: 系统框架相关 | F3: 开发过程中设计Metis2.0相关问题调研、沟通、确认、改修、调试等工作 | G3: 低 | H3: 10 | I3: 全体 | J3: 2022-12-30 | K3: 1 | L3: =H3*(1-K3) -> 0
D4: 清洁度立项审批报告 | I4: 王新贺 | J4: 2022-04-30 | K4: 1 | L4: 0
D5: 项目初期启动会议 | I5: 全体 | J5: 2022/4/25-2022/4/30 | K5: 1 | L5: 0
B6: =ROW()-2 -> 4 | D6: 数据库设计相关 | E6: - | F6: 数据调整 | G6: 低 | H6: 5 | I6: 全体 | J6: 2022-12-30 | K6: 1 | L6: 0
B7: =ROW()-2 -> 5 | D7: 需求确认及对应 | E7: - | F7: 与林斌沟通、确认及调整 | G7: 低 | H7: 15 | I7: 沙永刚 | J7: 2022-12-30 | K7: 1 | L7: 0
D8: 清洁度进展现状预定的会议 | I8: 全体 | J8: 2022-05-12 | K8: 1 | L8: 0
B9: =ROW()-2 -> 7 | D9: 信息提示画面 | E9: 弹出 | F9: 通用提示框：信息、警告、错误 | G9: 高 | H9: 2 | I9: 沙永刚 | J9: 2022-06-30 | K9: 1 | L9: 0
B10: =ROW()-2 -> 8 | D10: 操作确认画面 | E10: 弹出 | F10: 提示用户确认或者取消 | G10: 高 | H10: 1 | I10: 沙永刚 | J10: 2022-06-30 | K10: 1 | L10: 0
B11: =ROW()-2 -> 9 | D11: 系统初始化处理 | E11: - | G11: 高 | H11: 3 | I11: 王琦 | J11: 2022-05-30 | K11: 1 | L11: 0
B12: =ROW()-2 -> 10 | C12: 1.检测分析 | D12: 检测画面 | E12: 工作区 | F12: 添加菜单、图标、按钮、动作迁移（处理空） | G12: 高 | H12: 2 | I12: 王琦 | J12: 2022-05-30 | K12: 1 | L12: 0
B13: =ROW()-2 -> 11 | D13: 规程选择画面 | E13: 弹出 | F13: 列出所有规程，初始选择登录用户默认规程 | G13: 中 | H13: 2 | I13: 沙永刚 | J13: 2022-07-30 | K13: 0.85 | L13: 0.3
C14: 优化 | D14: 梳理检测分析业务逻辑，完成检测模块测试书 | I14: 宋珊珊 | J14: 2022/12/5---2022/12/6 | K14: 1
B15: =ROW()-2 -> 13 | D15: 滤膜工位选择画面 | E15: 弹出 | F15: 1.所选工位信息执行过程全局存储设计 | G15: 中 | H15: 2 | I15: 王琦 | J15: 2022-10-30 | K15: 0.95 | L15: =H15*(1-K15) -> 0.1 | M15: ①6个工位改为2个工位（注意位置） ②未在硬件设备上调试 ③多滤膜暂时放到二期。
B16: =ROW()-2 -> 14 | D16: 滤膜信息输入画面 | E16: 弹出 | F16: 1.根据规程设置参数，动态生成该信息画面，有一定难度 2.考虑多滤膜/单滤膜场合，画面表示差异 3.录入信息存储设计(后续扫描、统计分析、生成报告均需要这些信息) | G16: 高 | H16: 5 | I16: 王琦 | J16: 2022-10-30 | K16: 0.85 | L16: =H16*(1-K16) -> 0.75 | M16: ①图片保存位置需要可调整 ②需要结合规程设置调试验证
B17: =ROW()-2 -> 15 | D17: 拼图进度展示画面 | E17: 弹出 | F17: 1.读取规程所有设置相关参数 2.根据规程设置的拼图进行扫描拍照 3.根据规程设置的相机设置，进行拍照（曝光、白平衡、阴影矫正等设置） 4.根据规程设置的自动聚焦方式，进行自动聚焦处理（自动聚焦需要验证，聚焦补偿需要算法实现） 5.涉及相关硬件控制：载物台、Z轴自动聚焦、相机拍照、偏光镜控制 6.根据扫描进度，画面更新处理 7.两遍扫描完成后，需要完成拼图处理 8.拼图后，需要根据规程设置的分析区域，及参数设置，进行颗粒识别、分类、测量 9.根据规程的分级设置，对测量结果进行分级统计分析 10.需要对拼接后大图进行再拆分处理，并进行物理存储（不保存拼接大图及颗粒小图） | G17: 高 | H17: 50 | I17: 王琦 | J17: 2022-12-30 | K17: 0.75 | L17: =H17*(1-K17) -> 12.5 | M17: ①数据统计算法需要持续优化 ②数据库存储速度需要确认及优化 ③多测试多滤膜（多滤膜可二期进行） ④需要对应新台子修改与调试（新台子代码开发中） ⑤圆形拼图扫描修改及调试验证 ⑥台子结合扫描、拼图、测量后的精度待严重
B18: =ROW()-2 -> 16 | F18: 拼图进度展示画面，涉及图像相关处理： 1.拼图：6*7,19*23，？ 2.测量： ·最大卡规直径（FeretMax） ·最小卡规直径（FeretMin） ·拉伸长度（StretchLengh） ·外接矩形长（BoundingRectLength） ·外界矩形宽（BoundingRectWidth） ·长宽比（AspectRatio） ·等效圆直径（ECD） ·内切圆直径（MaxInscribeCircle） ·面积（Area） ·最大灰度（GrayMax） ·平均灰度（GrayMean） ·颗粒所在图片左侧距离（ParticleBoundImageLeft） ·颗粒所在图片上侧距离（ParticleBoundImageTop） ·颗粒所在图片上的宽度（ParticleBoundImageWidth） ·颗粒所在图片上的高度（ParticleBoundImageHeight） 3.轮廓：需要给出颗粒轮廓信息，以便系统显示或不显示颗粒轮廓 4.图片分割：颗粒图片切割、大图拆分切割 | H18: 60 | I18: 宋学奎 | J18: 2022-08-30 | K18: 0.75 | L18: =H18*(1-K18) -> 15 | M18: ①拼图后有时有缝隙及拼接痕迹有些明显 ②第2遍拼接的明场图片要确保和第1遍拼接的偏光未完全重合(颗粒位置) ③测量性能需要持续后续优化验证
D19: 优化 | F19: 宋部长计划16号将拼图程序发布一个新版本，收到版本程序后进行程序调试和测试，如果还有问题继续与宋部长沟通改正问题。 | I19: 王琦 | J19: 2022/12/19---2022/12/30
C20: review-bug | D20: 拼图和阴影校正再优化 发现者 | E20: 发现人 | F20: 王新贺 | I20: 宋学奎 | J20: 2022/11/21---2022/12/16 | K20: 1 | M20: 拼图错位、有缝，拼图后必须看不到那个拼缝，拼完之后再做完阴影校正，让人感觉像一个大的视场图一样，看不到每个小块，现在的图是：每块能看得见，这种是不行的。
B21: =ROW()-2 -> 19 | F21: 自动聚焦：逐点自动聚焦及间隔数点自动聚焦 | G21: 低 | H21: 3 | I21: 沙永刚 | J21: 2022-11-30 | K21: 0.7 | L21: =H21*(1-K21) -> 0.9 | M21: ①有参照代码，本系统暂未实现
D22: 优化 | F22: 自动聚焦、聚焦补偿程序测试，问题修正。 | I22: 王琦 | J22: 2022/12/5---2022/12/9 | K22: 1
B23: =ROW()-2 -> 21 | F23: 聚焦补偿：根据数个焦点位置确定多个空间平面，不同xy位置交于空间平面的z位置，即判定并计算为焦平面位置 | G23: 低 | H23: 5 | I23: 沙永刚 | J23: 2022-11-30 | K23: 0.7 | L23: =H23*(1-K23) -> 1.5 | M23: ①有参照代码，本系统暂未实现
B24: =ROW()-2 -> 22 | D24: 颗粒编辑窗口 | E24: 弹出 | F24: 1.可改变颗粒类型、可切换图片为偏光或明场图片 2.可对图片中颗粒进行添加、删除、切割、连接处理 3.需要可对操作进行返回、重做、复原处理、可显示原图或编辑图 4.可重新自动测量计算分析该视场相关颗粒数据 | G24: 中 | H24: 25 | I24: 王琦 | J24: 2022-11-30 | K24: 0.8 | L24: =H24*(1-K24) -> 5 | M24: ①多个颗粒展示图片慢。 ②颗粒编辑后，不要直径统计分析，需点击重新计算按钮
D25: 优化 | F25: 颗粒定位（实时预览时，将样品台移动到颗粒位置）。 | I25: 王琦 | J25: 2022/12/8---2022/12/9 | K25: 1
B26: =ROW()-2 -> 24 | F26: 颗粒编辑窗口，涉及相关图像处理： 1.添加颗粒：手动操作，画轮廓添加（相关测量如何计算？） 2.删除颗粒：手动操作，框在范围内的部分删除 3.分割颗粒：手动操作，在框的范围内分割为两个颗粒 4.连接颗粒：手动操作，在框的范围内拟合连接成一个颗粒 | G26: 中 | H26: 14 | I26: 洪冰 | J26: 2022-08-30 | K26: 0.85 | L26: =H26*(1-K26) -> 2.1 | M26: ①林工认为部分操作不友好，后续有定论再研究
D27: 优化 | F27: 颗粒编辑后，重新计算报错问题跟踪和解决。 | I27: 王琦 | J27: 2022/12/14---2022/12/16 | K27: 1
B28: =ROW()-2 -> 26 | D28: 实时预览画面 | E28: 弹出 | F28: 1.需要调研在Metis2.0上修改方法(或复制新的预览画面修改） 2.主要添加偏光明场切换处理、拍照替换图片、实时测量并保存图片处理 | G28: 高 | H28: 10 | I28: 王琦 | J28: 2022-10-30 | K28: 0.8 | L28: =H28*(1-K28) -> 2 | M28: ①需要可以根据选择不同颗粒，动态定位颗粒 ②需要预览窗口在最上边 ③需要实现照片替换功能（涉及处理较多，二期实现）
B29: 27 | D29: 高度测量画面 | E29: 弹出 | F29: 1.需要参照Metis2.0的预览画面修改 2.主要添加确定焦平面的处理 | G29: 中 | H29: 5 | I29: 王琦 | J29: 2022-11-30 | K29: 0.9 | L29: 0.5 | M29: ①需要待新硬件开发完成后，重新修改和调试 ②确认更新高度值（画面和数据库）
B30: 28 | D30: 存档确认画面 | E30: 弹出 | F30: 1.着重考虑数据存储设计 | G30: 中 | H30: 2 | I30: 王琦 | J30: 2022-12-30 | K30: 0.8 | L30: 0.4 | M30: ①需要添加提示框，确认 ②存档后，变为查看模式，编辑等相关相关修改不可用
B31: 29 | D31: 检测结果画面 | E31: 工作区 | F31: 1.自动分析后，自动打开结果画面并从数据库读取相关分析结果数据 2.画面复杂度高，展示分为分级模式和图库模式 3.工具栏命令对展示区的控制实现：如各种筛选过滤、排序、导入导出报告等操作 4.柱状图实现、图片缩略图一览实现 5.根据报告模板生成报告文档（报告文件格式？）宋珊珊 | G31: 高 | H31: 30 | I31: 王琦 | J31: 2022-12-30 | K31: 0.8 | L31: 6 | M31: ①测量不同数量的展示时间需要优化 ②分级模式界面优化。 ③图库模式加拉伸长度列 ④图库模式增加最大灰度、平均灰度及灰度差值展示
B32: 30 | C32: 2.项目管理 | D32: 项目浏览画面 | E32: 工作区 | F32: 1.从数据库中读取历史检测项目并展示 | G32: 中 | H32: 6 | I32: 宋珊珊 | J32: 2022-12-30 | K32: 0.85 | L32: 0.9 | M32: ①增加刷新按钮。 ②右侧展示与分级模式统一共用一个画面 ③合并的项目展示：右侧展示区右上角需要有数据源连接可查看
B33: 31 | D33: 项目合并画面 | E33: 弹出 | F33: 1.需要列出可以合并的项目 2.项目合并处理，并生成新的项目 | G33: 低 | H33: 5 | I33: 沙永刚 | J33: 2022-11-30 | K33: 0.8 | L33: 1 | M33: ①相关数据合并处理 ②相关数据统计分级处理及展示 ③哪些项目可以合并未实现
D34: 优化 | F34: 项目文件中涉及使用规程处理方式调研 | I34: 宋珊珊 | J34: 2022/12/13---2022/12/13 | K34: 1
D35: 优化 | F35: 项目浏览、标尺样式、快捷键设置等功能的剩余编码工作 | I35: 宋珊珊 | J35: 2022/12/14---2022/12/18 | K35: 1
B36: =ROW()-2 -> 34 | C36: 3.规程管理 | D36: 规程浏览设置画面 | E36: 工作区 | F36: 画面作成： 1.每个Tab设置内容均需要配置文件进行保存 2.画面复杂度高，可检索及修改规程，分为多个Tab页设定 | G36: 高 | H36: 5 | I36: 沙永刚 | J36: 2022-06-30 | K36: 0.85 | L36: =H36*(1-K36) -> 0.75
B37: =ROW()-2 -> 35 | F37: 基本信息画面 | G37: 高 | H37: 1 | I37: 沙永刚 | J37: 2022-06-30 | K37: 0.85 | L37: =H37*(1-K37) -> 0.15
B38: =ROW()-2 -> 36 | F38: 图片来源：本地图片、项目图库、相机扫描 | G38: 高 | H38: 20 | I38: 沙永刚 | J38: 2022-11-30 | K38: 0.8 | L38: =H38*(1-K38) -> 4 | M38: ①检测时，项目来源本地图片及项目图库时，需要提供交互窗口
B39: =ROW()-2 -> 37 | F39: 信息模板画面 | G39: 高 | H39: 12 | I39: 沙永刚 | J39: 2022-07-30 | K39: 0.8 | L39: =H39*(1-K39) -> 2.4
B40: =ROW()-2 -> 38 | F40: 执行流程画面：测量区域、物相提取 | G40: 高 | H40: 20 | I40: 沙永刚 | J40: 2022-12-30 | K40: 0.8 | L40: =H40*(1-K40) -> 4 | M40: ①明场偏光灰度差判定应为或模式 ②阈值设定性能优化，目前单视场 ③碎屑删除系统内置最小值5（但需要有后门配置文件）
D41: 优化 | F41: 检测时的范围设定及物相提取处理方式调研 | I41: 宋珊珊 | J41: 2022/12/12---2022/12/12 | K41: 1
D42: 优化 | F42: 物相提取等大界面需要优化 | I42: 宋珊珊 | J42: 2022/12/19---2022/12/20
B43: =ROW()-2 -> 41 | F43: 参数设置画面 | G43: 高 | H43: 10 | I43: 沙永刚 | J43: 2022-10-30 | K43: 0.8 | L43: =H43*(1-K43) -> 2 | M43: ①明场偏光灰度差判定应为或模式
D44: 优化 | F44: 修改规程切换时不保存设置参数问题。 | I44: 王琦 | J44: 2022/12/12---2022/12/14 | K44: 1
B45: =ROW()-2 -> 43 | F45: 分级设置画面 | G45: 高 | H45: 10 | I45: 沙永刚 | J45: 2022-12-30 | K45: 0.8 | L45: =H45*(1-K45) -> 2 | M45: ①需要根据标准ISO4406、ISO4407、ISO16232、VDA19.2作成对应内置规程设置（标准分级资料林斌提供）
B46: =ROW()-2 -> 44 | F46: 报告模板设置画面 | G46: 高 | H46: 1 | I46: 沙永刚 | J46: 2022-10-30 | K46: 0.8 | L46: =H46*(1-K46) -> 0.2 | M46: ①该画面中选择报告模板需要确认是否有必要保留（目前出报告时会有预览画面，可选择不同模板进行预览）
B47: =ROW()-2 -> 45 | F47: 浏览画面：规程新建、克隆、导入、导出 | G47: 高 | H47: 15 | I47: 沙永刚 | J47: 2022-12-30 | K47: 0.8 | L47: =H47*(1-K47) -> 3 | M47: ①规程导入功能、导出未实现 ②需要删除新建功能、增加内置系统规程
D48: 优化 | F48: 查找规程更改后，点击标尺标定报错问题。 | I48: 王琦 | J48: 2022/12/13---2022/12/15 | K48: 1
B49: =ROW()-2 -> 47 | D49: 分析范围交互画面 | E49: 弹出 | F49: 扫描途中，弹出交互画面，展示拼图后滤膜，让用户设定滤膜分析范围 | G49: 高 | H49: 20 | I49: 沙永刚 | J49: 2022-10-30 | K49: 0.8 | L49: =H49*(1-K49) -> 4 | M49: ①分析范围交互画面
B50: =ROW()-2 -> 48 | D50: 拼图设置画面 | E50: 弹出 | F50: 1.根据设置参数，动态展示拼图区域预览（背景滤膜轮廓信息） 2.能实时看到拼图区域所在滤膜位置 3.能通过鼠标在预览区控制拼图范围位置 | G50: 高 | H50: 20 | I50: 沙永刚 | J50: 2022-12-30 | K50: 0.73 | L50: =H50*(1-K50) -> 5.4 | M50: ①行列不准确，需要调研
B51: =ROW()-2 -> 49 | D51: 标签选择画面 | E51: 弹出 | F51: 1.需要考虑系统内置标签，如客户信息、零部件信息等 2.需要考虑系统没有的标签，作为新标签，以便输出报表可识别 3.相关数据库设计重点考虑 | G51: 中 | H51: 5 | I51: 沙永刚 | J51: 2022-10-30 | K51: 0.8 | L51: =H51*(1-K51) -> 1
D52: 优化修改 | F52: 标签选择画面剩余默认选项优化等剩余编码工作 | I52: 宋珊珊 | J52: 2022/12/21---2022/12/22
D53: 优化 | F53: 规程管理代码的熟悉和清洁度程序联调过程中发现问题处理等。 | I53: 王琦 | J53: 2022/12/5---2022/12/30
A54: 2 | B54: =ROW()-2 -> 52 | D54: 清洁度编码设置画面 | E54: 弹出 | F54: 1.检测分析后，进行分级统计时，需要用到该画面设置的信息 | G54: 中 | H54: 2 | I54: 沙永刚 | J54: 2022-10-30 | K54: 0.8 | L54: =H54*(1-K54) -> 0.4
D55: 优化 | F55: 清洁度编码设置画面剩余编码工作 | I55: 宋珊珊 | J55: 2022/12/23---2022/12/23
B56: =ROW()-2 -> 54 | C56: 4.报告模板 | D56: 报告模板母版设计（单滤膜） | E56: 弹出 | F56: 1.报告模板设计及实现（按需求设计一套完整模板模板） | G56: 中 | H56: 10 | I56: 宋珊珊 | J56: 2022-10-30 | K56: 0.9 | L56: =H56*(1-K56) -> 1 | M56: ①需要使用归一化参数（已完成） ②追加清洁度编码（已完成）
B57: =ROW()-2 -> 55 | D57: 报告模板母版设计（合并滤膜） | E57: 弹出 | F57: 1.报告模板设计及实现（按需求设计一套完整模板模板） | G57: 中 | H57: 8 | I57: 宋珊珊 | J57: 2022-10-30 | K57: 0.9 | L57: =H57*(1-K57) -> 0.8 | M57: ①需要显示多张滤膜概图（已完成） ②颗粒图片获取需要重新实现
D58: 优化 | F58: 报告数据源优化，动态配置 | I58: 宋珊珊 | J58: 2022/12/28---2022/12/29
B59: =ROW()-2 -> 57 | D59: 报告模板编辑画面 | E59: 弹出 | F59: 1.重点是如何关联报表设计器并为清洁度设计报告模板 2.检测分析后，相关数据如何传给报表模板，并生成报表 3.需要支持图片（数量动态）、表格（数据动态），树状图，固定信息等 4.结合项目检测结果输出报告（Metis2.0报告预览画面） | G59: 中 | H59: 30 | I59: 宋珊珊 | J59: 2022-10-30 | K59: 1 | L59: =H59*(1-K59) -> 0
B60: =ROW()-2 -> 58 | C60: 5.系统设置 | D60: 系统设置菜单 | E60: 工作区 | F60: 1.添加菜单、图标、按钮、动作迁移（弹出空画面） | G60: 高 | H60: 2 | I60: 宋珊珊 | J60: 2022-10-30 | K60: 0.9 | L60: =H60*(1-K60) -> 0.2
D61: 优化修改 | F61: 设置模块测试书编写，梳理设置模块逻辑 | I61: 宋珊珊 | J61: 2022/12/7---2022/12/8 | K61: 1
B62: =ROW()-2 -> 60 | D62: 常规设置画面 | E62: 弹出 | F62: 1.先期只实现日志输出控制，语言及主题先期只有默认（不可选） 2.日志组件实现 3.检测结果默认显示设置 | G62: 高 | H62: 3 | I62: 王新贺 | J62: 2023-01-13 | K62: 0.9 | L62: =H62*(1-K62) -> 0.3
D63: 优化 | F63: 常规设置优化修改 | I63: 王新贺 | J63: 2022/12/12---2022/12/16
B64: =ROW()-2 -> 62 | D64: 存储设置画面 | E64: 弹出 | F64: 1.先期只实现本地存储设置，服务器存储只做UI，后续再实现功能 | G64: 中 | H64: 1 | I64: 沙永刚 | J64: 2022-10-30 | K64: 0.8 | L64: =H64*(1-K64) -> 0.2
B65: =ROW()-2 -> 63 | D65: 磁盘清理功能 | E65: 弹出 | F65: 1.跳转到需要清理的磁盘目录 2.通过画面设定清理范围，点击清理按钮，自动完成清理工作 | G65: 中 | H65: 1 | I65: 沙永刚 | J65: 2022-12-30 | K65: 0.8 | L65: =H65*(1-K65) -> 0.2 | M65: ①本期实现跳转到需要清理的磁盘目录
D66: 优化 | F66: 存储设置画面、磁盘清理功能界面剩余编码工作 | I66: 宋珊珊 | J66: 2022/12/26---2022/12/27
D67: 优化 | F67: 调用Metis的相关窗体异常问题处理 | I67: 宋珊珊 | J67: 2022/12/30---2022/12/30
B68: =ROW()-2 -> 66 | D68: 用户信息画面 | E68: 弹出 | F68: 1.实现及存储参照Metis2.0 | G68: 中 | H68: 3 | I68: 沙永刚 | J68: 2022-10-30 | K68: 0.8 | L68: =H68*(1-K68) -> 0.6
B69: 67 | D69: 标尺管理画面 | E69: 弹出 | F69: 1.实现及存储参照Metis2.0 2.但需要将标尺一览的Dock窗口变为Dialog形式 3.需要改造标尺一览画面：增加样式设定按钮 | G69: 中 | H69: 3 | I69: 宋珊珊 | J69: 2022-10-30 | K69: 1 | L69: 0
B70: 68 | D70: 新建标尺画面 | E70: 弹出 | F70: 1.实现及存储参照Metis2.0 | G70: 中 | H70: 1 | I70: 宋珊珊 | J70: 2022-10-30 | K70: 1 | L70: 0
B71: 69 | D71: 标尺样式画面 | E71: 弹出 | F71: 新作成清洁度专用样式设定画面 | G71: 中 | H71: 5 | I71: 宋珊珊 | J71: 2022-10-30 | K71: 0.9 | L71: 0.5 | M71: ①考虑自己制作界面进行标尺等颜色设置（自定义文件）。 ②去掉原菜单中的标尺设置按钮。
B72: 70 | D72: 快捷键设置画面 | E72: 弹出 | F72: 设置功能快捷键 | G72: 低 | H72: 1 | I72: 宋珊珊 | J72: 2022-10-30 | K72: 0.9 | L72: 0.1 | M72: ①目前设定后，部分功能未调用 ②画面只需要列出清洁度相关菜单，其他不需要，如不能实现可去除该画面 （目前调用的Metis中的控件）
B73: 71 | D73: 测量设置画面 | E73: 弹出 | F73: 1.实现及存储参照Metis2.0，如要调查测量时如何使用 | G73: 中 | H73: 1 | I73: 宋珊珊 | J73: 2022-10-30 | K73: 1 | L73: 0
B74: 72 | D74: 聚焦参数设置 | E74: 弹出 | F74: 1.实现及存储参照Metis2.0 | G74: 低 | H74: 1 | I74: 宋珊珊 | J74: 2022-10-30 | K74: 1 | L74: 0
B75: 73 | D75: 相机设置画面 | E75: 弹出 | F75: 1.实现及存储参照Metis2.0 2.但需要考虑相机设置方案条目的实现（可创建多个条目供选择使用，如偏光的，明场的） | G75: 高 | H75: 20 | I75: 王琦 | J75: 2022-12-30 | K75: 0.8 | L75: 4 | M75: ①目前问题：Metis中阴影矫正功能只能设置一次，不能保存。 ②若采用新型相机，相关设置需要重新调试（不包含开发新相机底层代码工作）
B76: 74 | D76: 载物台设置画面 | E76: 弹出 | F76: 新型载物台（永新载物台）开发 | G76: 高 | H76: 30 | I76: 王琦 | J76: 2022-11-30 | K76: 0.8 | L76: 6 | M76: ①新型显微镜载物台底层开发
D77: 优化 | F77: 永新样品台0.7接口到位后，调试和测试阴影矫正功能功能是否可行，如果不行还需要宋部长对程序进行修正。 | I77: 王琦 | J77: 2022/12/14---2022/12/30
B78: =ROW()-2 -> 76 | D78: 电机参数设置画面 | E78: 弹出 | F78: 1.结合新型载物台实现相关接口 | G78: 中 | H78: 10 | I78: 王琦 | J78: 2022-11-30 | K78: 0.8 | L78: =H78*(1-K78) -> 2 | M78: ①新型显微镜载物台底层开发
B79: =ROW()-2 -> 77 | D79: 物镜及光源设定画面 | E79: 弹出 | F79: 永新显微镜相关设置画面实现 | G79: 中 | H79: 3 | I79: 宋珊珊 | J79: 2022-10-30 | K79: 1 | L79: =H79*(1-K79) -> 0 | M79: 暂定不需要该界面
B80: =ROW()-2 -> 78 | D80: 客户管理画面 | E80: 弹出 | F80: 1.重点关注数据库存储设计 | G80: 中 | H80: 2 | I80: 王新贺 | J80: 2022-10-30 | K80: 0.9 | L80: =H80*(1-K80) -> 0.2
D81: 优化 | F81: 客户管理优化修改 | I81: 王新贺 | J81: 2022/12/12---2022/12/14
B82: =ROW()-2 -> 80 | D82: 零部件管理 | E82: 弹出 | F82: 1.重点关注数据库存储设计 | G82: 中 | H82: 2 | I82: 王新贺 | J82: 2022-10-30 | K82: 0.9 | L82: =H82*(1-K82) -> 0.2
D83: 优化 | F83: 部件管控模块编码 | I83: 王新贺 | J83: 2022/12/5---2022/12/9 | K83: 1
B84: =ROW()-2 -> 82 | D84: 操作者管理画面 | E84: 弹出 | F84: 1.重点关注数据库存储设计 | G84: 低 | H84: 3 | I84: 王新贺 | J84: 2022-10-30 | K84: 0.9 | L84: =H84*(1-K84) -> 0.3
D85: 优化 | F85: 操作者管理优化修改 | I85: 王新贺 | J85: 2022/12/26---2022/12/30
B86: =ROW()-2 -> 84 | D86: 权限管理画面 | E86: 弹出 | F86: 1.重点关注数据库存储设计 | G86: 低 | H86: 1 | I86: 王新贺 | J86: 2022-10-30 | K86: 0.9 | L86: =H86*(1-K86) -> 0.1
D87: 优化 | F87: 权限管理画面优化修改 | I87: 王新贺 | J87: 2022/12/19---2022/12/23
B88: =ROW()-2 -> 86 | C88: 6.帮助 | D88: 帮助目录画面 | E88: 弹出 | F88: 1.帮助文档 | G88: 低 | H88: 15 | I88: 王新贺 | J88: 2023-01-13 | K88: 0.51 | L88: =H88*(1-K88) -> 7.35
B89: =ROW()-2 -> 87 | D89: 关于画面 | E89: 弹出 | F89: 1.固定信息 | G89: 低 | H89: 1 | I89: 王新贺 | J89: 2022-12-30 | K89: 0.9 | L89: =H89*(1-K89) -> 0.1
B90: =ROW()-2 -> 88 | C90: 单体测试 | D90: 功能测试、异常系测试、连台联调测试 | G90: 高 | H90: 40 | I90: 全体开发者 | J90: 2023-02-28 | K90: 0 | L90: =H90*(1-K90) -> 40
D91: 优化 | F91: 测试书编写过程中发现Bug修改及功能优化处理 | I91: 宋珊珊 | J91: 2022/12/9---2022/12/9 | K91: 0.7
B92: =ROW()-2 -> 90 | C92: 结合测试 | D92: 功能测试、软件稳定性、准确性及性能测试 | G92: 高 | H92: 30 | I92: 杨欣瑜 开发者对应 | J92: 2023-02-28 | K92: 0 | L92: =H92*(1-K92) -> 30
C95: 额外工作 | H95: =SUM(H97:H127) -> 126
C96: No | D96: 项目 | E96: 内容 | F96: 担当 | G96: 月份 | H96: 工作量(人日)
C97: 1 | D97: 矿研院 | E97: 高倍(500X)扫描自动聚焦调研、调试、优化 | F97: 沙永刚 | G97: 5 | H97: 3
C98: 2 | D98: 矿研院 | E98: 聚焦补偿算法调研、实现、验证、优化 | F98: 沙永刚 | G98: 5 | H98: 8
C99: 3 | D99: Metis2.0 | E99: 自动聚焦及聚焦补偿实现及调试 | F99: 沙永刚 | G99: 5 | H99: 2
C100: 4 | D100: Metis2.0 | E100: M3H样品台既存问题修改 | F100: 沙永刚 | G100: 5 | H100: 1
C101: 5 | D101: Metis2.0 | E101: 相机和样品台问题测试 | F101: 王琦 | G101: 5 | H101: 5
C102: 6 | D102: PCB手动测量 | E102: 需求分析、制定开发计划，出差深圳 | F102: 宋珊珊 | G102: 5月 | H102: 11
C103: 7 | D103: 自动PCB接口 | E103: 需求分析，源代码了解 | F103: 宋珊珊 | G103: 5月 | H103: 1.5
C104: 8 | D104: Metis2.0 | E104: 自动景深扩展问题调查 | F104: 沙永刚 | G104: 6 | H104: 1
C105: 9 | D105: PCB手动测量 | E105: 多方案制定及功能点补充及细化 | F105: 宋珊珊 | G105: 6月 | H105: 5
C106: 10 | D106: 自动PCB接口 | E106: 接口需求确认、方案设计、功能开发、测试、现场调试、用户培训 | F106: 宋珊珊 | G106: 6月 | H106: 8.5
C107: 11 | D107: Metis2.0 | E107: 需求优化、Bug修改 | F107: 宋珊珊 | G107: 7月 | H107: 6.5
C108: 12 | D108: Metis2.0 | E108: 载物台一定速度调查优化 | F108: 沙永刚 | G108: 7 | H108: 3
C109: 13 | D109: Metis2.0 | E109: 专业分析-不锈钢α相面积测量 | F109: 沙永刚 | G109: 8 | H109: 3
C110: 14 | D110: Metis2.0 | E110: 自动分析-夹杂物、晶粒度、带状组织报告功能 | F110: 宋珊珊 | G110: 8 | H110: 6
C111: 15 | D111: 朗铎自动化 | E111: 现场配合测试、软件问题修改和相关文档的编写 | F111: 王琦 | G111: 7 | H111: 5
C112: 16 | D112: 朗铎自动化 | E112: 动态库的生成和使用说明书的编写 | F112: 王琦 | G112: 8月 | H112: 2
C113: 17 | D113: 永新样品台 | E113: 根据相关命令编写测试Demo程序和简单测试 | F113: 王琦 | G113: 8月 | H113: 5
C114: 18 | D114: 煤岩 | E114: 熟悉煤岩软件代码。与光镜工程师学习软件使用。 | F114: 王琦 | G114: 8月 | H114: 3
C115: 19 | D115: Metis2.0 | E115: 框架中Menu及Tab切换改修 | F115: 沙永刚 | G115: 9 | H115: 1
C116: 20 | D116: Metis2.0 | E116: 需求优化、Bug修改 | F116: 沙永刚 | G116: 9 | H116: 2
C117: 21 | D117: 永新样品台 | E117: 根据Metis2.0相关规则开发永新样品台接口。 | F117: 王琦 | G117: 9 | H117: 8
C118: 22 | D118: 永新样品台 | E118: 开发永新样品台接口程序 | F118: 王琦 | G118: 10月 | H118: 10
C119: 23 | D119: 拍照 | E119: 拍照测试 | F119: 王琦 | G119: 10月 | H119: 5
C120: 24 | D120: 永新样品台 | E120: 硬件联调，加拍照拼图等测试。 | F120: 王琦 | G120: 11月 | H120: 5
C121: 25 | D121: 朗铎自动化 | E121: CLI接口测试及相关会议讨论等。 | F121: 王琦 | G121: 11月 | H121: 3
C122: 26 | D122: Metis2.0 | E122: AI中增加自动分析通用报告功能 | F122: 宋珊珊 | G122: 9月 | H122: 1
C123: 27 | D123: 自动切片 | E123: Office导出报告异常等问题处理、去掉公司相关信息等 | F123: 宋珊珊 | G123: 9月 | H123: 2
C124: 28 | D124: 裂变项目 | E124: 了解裂变项目相关资料 | F124: 宋珊珊 | G124: 9月 | H124: 2
C125: 29 | D125: 铝合金报告 | E125: 需求调研、工作量评估、模板制作 | F125: 宋珊珊 | G125: 10月 | H125: 3.5
C126: 30 | D126: 铝合金报告 | E126: 数据源设定、报告调试、打印样式调试 | F126: 宋珊珊 | G126: 11月 | H126: 3.5
C127: 31 | D127: 裂变项目会议 | E127: 裂变项目现有功能演示及与老师进行确认 | F127: 宋珊珊 | G127: 11月 | H127: 0.5
C128: 32 | D128: Metis2.0 | E128: 增加新的晶粒度报告模板 | F128: 宋珊珊 | G128: 11月 | H128: 0.5
C129: 33 | D129: 宽动态摄像机之事 | E129: 宽动态摄像机对接光镜李明与王琦 | F129: 王新贺 | G129: 9 | H129: 0.5
C130: 34 | D130: 煤岩项目 | E130: 录制贾工讲解煤岩操作视频 | F130: 王新贺 | G130: 8月 | H130: 1
C131: 35 | D131: 机械手项目 | F131: 王新贺 | G131: 11月 | H131: 3
C144: 线上会议
C145: 序号 | D145: 类型 | E145: 工作内容 | F145: 日期 | G145: 日期 | H145: 用时（天） | I145: 参加者
C146: 1 | D146: 会议 | E146: 《Metis2框架下开发经验分享及代码审查》 | F146: 2022-05-26 | G146: 2022-05-26 | H146: 0.4 | I146: 宋珊珊、王新贺
C147: 2 | D147: 会议 | E147: 《清洁度项目开发例会》 | F147: 2022-06-30 | G147: 2022-06-30 | H147: 0.2 | I147: 沙永刚、王琦、宋珊珊、王新贺
C148: 3 | D148: 会议 | E148: 《清洁度培训会议》 | F148: 2022-09-02 | G148: 2022-09-02 | H148: 0.4 | I148: 沙永刚、王琦、宋珊珊、王新贺
C149: 4 | D149: 会议 | E149: 《清洁度会议》 | F149: 2022-09-22 | G149: 2022-09-22 | H149: 0.3 | I149: 沙永刚、王琦、宋珊珊、王新贺
C150: 5 | D150: 会议 | E150: 《清洁度会议》 | F150: 2022-11-09 | G150: 2022-11-09 | H150: 0.3 | I150: 沙永刚、王琦、宋珊珊、王新贺
C151: 6 | D151: 会议 | E151: 会议纪要整理 | F151: 2022-06-30 | G151: 2022-06-30 | H151: 0.1 | I151: 宋珊珊
C152: 7 | D152: 会议 | E152: 开会讨论图库模式及报告中所需图片的处理方式 | F152: 2022-07-08 | G152: 2022-07-08 | H152: 0.2 | I152: 沙永刚、王琦、宋珊珊、王新贺
C153: 8 | D153: 会议 | E153: 参加清洁度数据结构调整会议 | F153: 2022-07-19 | G153: 2022-07-19 | H153: 0.3 | I153: 沙永刚、王琦、宋珊珊、王新贺
C154: 9 | D154: 会议 | E154: 参加清洁度会议 | F154: 2022-08-04 | G154: 2022-08-04 | H154: 0.2 | I154: 沙永刚、王琦、宋珊珊、王新贺
C155: 10 | D155: 会议 | E155: 参加清洁度项目会议 | F155: 2022-08-23 | G155: 2022-08-23 | H155: 0.2 | I155: 沙永刚、王琦、宋珊珊、王新贺
C156: 11 | D156: 会议 | E156: 沟通合并项目数据结构 | F156: 2022-09-27 | G156: 2022-09-27 | H156: 0.3 | I156: 沙永刚、王琦、宋珊珊、王新贺
C157: 12 | D157: 会议 | E157: 参加清洁度会议 | F157: 2022-10-11 | G157: 2022-10-11 | H157: 0.2 | I157: 沙永刚、王琦、宋珊珊、王新贺
C158: 13 | D158: 会议 | E158: 参加清洁度会议 | F158: 2022-10-18 | G158: 2022-10-18 | H158: 0.2 | I158: 沙永刚、王琦、宋珊珊、王新贺
C159: 14 | D159: 会议 | E159: 与沙哥沟通测试书编写 | F159: 2022-11-08 | G159: 2022-11-08 | H159: 0.2 | I159: 沙永刚、王琦、宋珊珊、王新贺
C160: 16 | D160: 会议 | E160: 参加清洁度会议纪要问题讨论会议 | F160: 2022-11-10 | G160: 2022-11-09 | H160: 0.3 | I160: 沙永刚、王琦、宋珊珊、王新贺
C161: 17 | D161: 会议 | E161: 参加清洁度会项目交接会议 | F161: 2022-11-29 | G161: 2022-11-29 | H161: 0.3 | I161: 沙永刚、王琦、刘洪冰、宋珊珊、王新贺
D163: 时间 | E163: 2022/11/09 14:00-16:30
D164: 人员 | E164: 孙总、王新贺、林斌、刘洪冰、宋珊珊、沙永刚、王琦
D165: No | E165: 模块 | F165: 内容 | G165: 结论 | H165: 区分 | I165: 优先级 | J165: 责任者 | K165: 状态
D166: 1 | E166: 全体 | F166: 主工作区中的窗口，在较小屏幕（如笔记本）部分项目表示不全 | G166: 画面使用滚动条 | H166: 问题 | I166: 中 | J166: 宋珊珊
D167: 2 | E167: 规程设置 | F167: 规程设置-图片来源：倍率列表中选择项目应该系统标尺下的所有倍率 | G167: 倍率选择删除，只保留标尺即可，因为标尺决定分辨率并关联了倍率 | H167: 改善 | I167: 中 | J167: 沙永刚 | K167: 完成
D168: 3 | E168: 规程设置 | F168: 规程设置-图片来源：阴影矫正选项中不要空选项 | G168: 删除空项 | H168: 问题 | I168: 中 | J168: 沙永刚 | K168: 完成
D169: 4 | E169: 规程设置 项目管理 | F169: 规程浏览、项目浏览加右键快捷菜单功能 | G169: 需要追加 | H169: 改善 | I169: 中 | J169: 宋珊珊
D170: 5 | E170: 检测 | F170: 检测结果-图库模式/分级模式的Grid需要可手动改变列宽 | G170: 需要修改，无特殊要求的都需要按此展开修改 | H170: 改善 | I170: 中 | J170: 宋珊珊
D171: 6 | E171: 检测 | F171: 提供颗粒参看功能（类似编辑画面） | G171: 提供查看模式，两种实现方式：一种是单独做个查看画面，可以缩放，囊括更多范围；另一种是在编辑画面，提供查看模式（不可编辑只可参看），编辑画面需提供缩放，以便囊括更多范围 目前考虑，第二种方式 | H171: 新需求 | I171: 中 | J171: 沙永刚
D172: 7 | E172: 检测 | F172: 提供拼接后大图查看功能（可放大查看细节），参照av的评估图 | G172: 加分项，需要增加该功能，参照av实现，难点是大图加载性能问题 | H172: 新需求 | I172: 低 | K172: 二期
D173: 8 | E173: 检测 | F173: 颗粒图库显示颗粒数量一多，出结果的时候卡在数据处理 关于颗粒图片，如图库浏览、颗粒编辑、报告颗粒图片，都是使用时拼接大图实时切割下来的，优点是切割幅度可以随意设定和动态调整，这种方式是否可以？ 另一个种是保存所有颗粒切割图，使用时直接使用该图，缺点是：一次检测会占用更多磁盘空间（可能30万颗粒的小图），切割幅度不能随意调整（调整重新从大图切割保存）， 是否需要在图库模式的缩略图和颗粒信息列表中显示所有颗粒：目前看显示所有会有性能问题，如显示30万颗粒 | G173: 保持现状：不保存颗粒小图，需要时从大图实时切割颗粒小图；不需要在页面显示所有颗粒； 但需要进行以下优化和修改：（图库模式性能优化相关） 1.当切割图片超过一定限值时，进行压缩切割 2.提供分页功能：每页可设定展示较少数量图片，分页显示 | H173: 改善 | I173: 高 | J173: 王琦 | K173: 完成
D174: 9 | E174: 规程设置 | F174: 规程设置-拼图设置：选择聚焦补偿的聚焦点数时，需要在右侧预览区域标记聚焦点位置 | G174: 加分项，需要增加该功能 | H174: 新需求 | I174: 低 | K174: 二期
D175: 10 | E175: 全体 | F175: 所有画面的ComboBox控件下拉框的宽度需要修改 | G175: 要修改，全部画面展开检查 | H175: 问题 | I175: 中 | J175: 沙永刚 | K175: 完成
D176: 11 | E176: 规程设置 | F176: 规程设置-执行流程-物相提取： 两个阈值场合，不同阈值识别的轮廓需要用不同颜色轮廓标识 | G176: 现状OK | H176: - | I176: - | J176: - | K176: -
D177: 12 | E177: 系统设置 | F177: 物镜转盘设定：需要可动态设置增删改查倍率（不应让客户手动修改配置文件） | G177: 要修改，可手动设定倍率，而不仅仅是从下拉框选择 设定物镜转盘后，其他有倍率选择画面，其倍率选择项目需要从物镜转盘内容中读取 | H177: 改善 | I177: 低 | J177: 宋珊珊
D178: 13 | E178: 设置 | F178: 缓存存在哪个路径，C盘每分析一个项目都会变大，怎么清空缓存 | G178: 现状OK。可通过点击：设置-磁盘清理，跳转到图片存储目录，可手动清空（图片缓存区位置可由用户进行设置指定） | H178: - | I178: - | J178: - | K178: -
D179: 13 | E179: 报告 | F179: 缓存存在哪个路径，C盘每分析一个项目都会变大，怎么清空缓存 | G179: 缓存区图片被清空后，不能图库模式查看图片，不可以出报告。 报告需要修改：可参照图库模式，当对应图片不存在是，提示图库被清除，不能出报告信息（参照点击图库模式按钮处理） | H179: 问题 | I179: 高 | J179: 宋珊珊
D180: 14 | E180: 规程设置 检测 | F180: 物相提取这里还是不能交互，无法根据实际情况调整提取阈值 | G180: 要修改，提供检测时用户的交互设定阈值功能，难点是大图加载 | H180: 新需求 | I180: 高 | J180: 沙永刚
D181: 15 | E181: 规程设置 检测 | F181: 物相提取增加吸管功能 | G181: 加分项，需要增加该功能 | H181: 新需求 | I181: 低 | K181: 二期
D182: 16 | E182: 检测 | F182: 颗粒分割这里点击完成以后处理速度很慢； 更改类型还是每改一个类型更新全部，重新计算功能没有起到作用； | G182: 需要修改：（编辑与重新计算相关） 更改类型处理类似现状的编辑颗粒，每更改一个类型，就重新进行全部统计分析。该处理需要对应：更改后，不立即全部更新，而是重新计算后统一更新 | H182: 改善 | I182: 高 | J182: 王琦 | K182: 完成
D183: 18 | E183: 检测 | F183: 有些颗粒连接分割不上 | G183: 现状OK。连接不上可能是一下两种情况： 1.同时选定连接范围的颗粒数量大于或等于3个了（一次连接操作只可连接两个颗粒，超过时不进行处理）； 2.选定需要连接的颗粒中不包含当前颗粒（编辑画面只允许编辑当前颗粒，连接的颗粒必须包含当前颗粒）； | H183: - | I183: - | J183: - | K183: -
D184: 18 | E184: 检测 | F184: 分割和连接，点击使用有时不起作用，需要再次点击一次按钮；有时候点击后切割不起作用，换不同位置反复测试，有时候就可以分割，有时不能分割 | G184: 需要调查和修改 | H184: 问题 | I184: 高 | J184: 刘洪冰
D185: 19 | E185: 报告 | F185: 这个版本点生成报告没反应 | G185: 新版本OK | H185: - | I185: - | J185: - | K185: -
D186: 20 | E186: 规程设置 | F186: 相机扫描跟本地图片规程是否考虑可以合并 | G186: 需要合并，大分支节点只有用户规程和系统规程区分 | H186: 改善 | I186: 中 | J186: 沙永刚 | K186: 完成
D187: 21 | E187: 规程设置 检测 | F187: 各级分析结果通过与否是跟哪个数据比对 | G187: 现状OK。根据规程设置-分级设置中指定【允许数量使用的归一化参数】一致 | H187: - | I187: - | J187: - | K187: -
D188: 22 | E188: 规程设置 检测 | F188: 关于归一化参数选择需要可设定 | G188: 加分项，需要增加该功能 | H188: 新需求 | I188: 低 | K188: 二期
D189: 23 | E189: 检测 | F189: 没有某一颗粒不参与计算的选项 | G189: 需要修改：只需在进行全部类型统计时，不参与计算的类型不参与全部类型的统计分析运算，但不参与全部类型计算的类型，自己的相关测量数据，及图库展示正常，与现状一致；另外全部类型的滤膜覆盖率包含不参与计算的颗粒类型 | H189: 问题 | I189: 高 | J189: 沙永刚 | K189: 完成
D190: 24 | E190: 检测 | F190: 图库模式，提供Grid列头点击排序（图库要联动） | G190: 因为分页设计到数据库重新检索问题，画面UI中统一为不可点击Grid列头排序 | H190: 改善 | I190: 中 | J190: 王琦 | K190: 完成
D191: 25 | E191: 算法 | F191: 测试压缩前后对比数据，得出数据 | G191: 需要对比测试 | H191: 改善 | I191: 低 | J191: 沙永刚
D192: 26 | E192: 全体 | F192: 多次测量分析等操作后，内存是否释放 | G192: 需要优化分析，如有问题需要进行改善 | H192: 改善 | I192: 中 | J192: 王新贺

Sheet 孙总及林工审查内容(2022-11-09)
B2: 会议 | C2: 清洁度会议
B3: 时间 | C3: 2022/11/09 14:00-16:30
B4: 人员 | C4: 孙总、王新贺、林斌、刘洪冰、宋珊珊、沙永刚、王琦
B5: No | C5: 模块 | D5: 内容 | E5: 结论 | F5: 区分 | G5: 优先级 | H5: 责任者 | I5: 状态
B6: 1 | C6: 全体 | D6: 主工作区中的窗口，在较小屏幕（如笔记本）部分项目表示不全 | E6: 画面使用滚动条 | F6: 问题 | G6: 中 | H6: 宋珊珊 | I6: 完成
B7: 2 | C7: 规程设置 | D7: 规程设置-图片来源：倍率列表中选择项目应该系统标尺下的所有倍率 | E7: 倍率选择删除，只保留标尺即可，因为标尺决定分辨率并关联了倍率 | F7: 改善 | G7: 中 | H7: 沙永刚 | I7: 完成
B8: 3 | C8: 规程设置 | D8: 规程设置-图片来源：阴影矫正选项中不要空选项 | E8: 删除空项 | F8: 问题 | G8: 中 | H8: 沙永刚 | I8: 完成
B9: 4 | C9: 规程设置 项目管理 | D9: 规程浏览、项目浏览加右键快捷菜单功能 | E9: 需要追加 | F9: 改善 | G9: 中 | H9: 宋珊珊 | I9: 完成
B10: 5 | C10: 检测 | D10: 检测结果-图库模式/分级模式的Grid需要可手动改变列宽 | E10: 需要修改，无特殊要求的都需要按此展开修改 | F10: 改善 | G10: 中 | H10: 宋珊珊 | I10: 完成
B11: 6 | C11: 检测 | D11: 提供颗粒参看功能（类似编辑画面） | E11: 提供查看模式，两种实现方式：一种是单独做个查看画面，可以缩放，囊括更多范围；另一种是在编辑画面，提供查看模式（不可编辑只可参看），编辑画面需提供缩放，以便囊括更多范围 目前考虑，第二种方式 | F11: 新需求 | G11: 中 | H11: 沙永刚
B12: 7 | C12: 检测 | D12: 提供拼接后大图查看功能（可放大查看细节），参照av的评估图 | E12: 加分项，需要增加该功能，参照av实现，难点是大图加载性能问题 | F12: 新需求 | G12: 低 | I12: 二期
B13: 8 | C13: 检测 | D13: 颗粒图库显示颗粒数量一多，出结果的时候卡在数据处理 关于颗粒图片，如图库浏览、颗粒编辑、报告颗粒图片，都是使用时拼接大图实时切割下来的，优点是切割幅度可以随意设定和动态调整，这种方式是否可以？ 另一个种是保存所有颗粒切割图，使用时直接使用该图，缺点是：一次检测会占用更多磁盘空间（可能30万颗粒的小图），切割幅度不能随意调整（调整重新从大图切割保存）， 是否需要在图库模式的缩略图和颗粒信息列表中显示所有颗粒：目前看显示所有会有性能问题，如显示30万颗粒 | E13: 保持现状：不保存颗粒小图，需要时从大图实时切割颗粒小图；不需要在页面显示所有颗粒； 但需要进行以下优化和修改：（图库模式性能优化相关） 1.当切割图片超过一定限值时，进行压缩切割 2.提供分页功能：每页可设定展示较少数量图片，分页显示 | F13: 改善 | G13: 高 | H13: 王琦
B14: 9 | C14: 规程设置 | D14: 规程设置-拼图设置：选择聚焦补偿的聚焦点数时，需要在右侧预览区域标记聚焦点位置 | E14: 加分项，需要增加该功能 | F14: 新需求 | G14: 低 | I14: 二期
B15: 10 | C15: 全体 | D15: 所有画面的ComboBox控件下拉框的宽度需要修改 | E15: 要修改，全部画面展开检查 | F15: 问题 | G15: 中 | H15: 沙永刚 | I15: 完成
B16: 11 | C16: 规程设置 | D16: 规程设置-执行流程-物相提取： 两个阈值场合，不同阈值识别的轮廓需要用不同颜色轮廓标识 | E16: 现状OK | F16: - | G16: - | H16: - | I16: -
B17: 12 | C17: 系统设置 | D17: 物镜转盘设定：需要可动态设置增删改查倍率（不应让客户手动修改配置文件） | E17: 要修改，可手动设定倍率，而不仅仅是从下拉框选择 设定物镜转盘后，其他有倍率选择画面，其倍率选择项目需要从物镜转盘内容中读取 | F17: 改善 | G17: 低 | H17: 宋珊珊 | I17: 完成
B18: 13 | C18: 设置 | D18: 缓存存在哪个路径，C盘每分析一个项目都会变大，怎么清空缓存 | E18: 现状OK。可通过点击：设置-磁盘清理，跳转到图片存储目录，可手动清空（图片缓存区位置可由用户进行设置指定） | F18: - | G18: - | H18: - | I18: -
B19: 13 | C19: 报告 | D19: 缓存存在哪个路径，C盘每分析一个项目都会变大，怎么清空缓存 | E19: 缓存区图片被清空后，不能图库模式查看图片，不可以出报告。 报告需要修改：可参照图库模式，当对应图片不存在是，提示图库被清除，不能出报告信息（参照点击图库模式按钮处理） | F19: 问题 | G19: 高 | H19: 宋珊珊 | I19: 完成
B20: 14 | C20: 规程设置 检测 | D20: 物相提取这里还是不能交互，无法根据实际情况调整提取阈值 | E20: 要修改，提供检测时用户的交互设定阈值功能，难点是大图加载 | F20: 新需求 | G20: 高 | H20: 沙永刚
B21: 15 | C21: 规程设置 检测 | D21: 物相提取增加吸管功能 | E21: 加分项，需要增加该功能 | F21: 新需求 | G21: 低 | I21: 二期
B22: 16 | C22: 检测 | D22: 颗粒分割这里点击完成以后处理速度很慢； 更改类型还是每改一个类型更新全部，重新计算功能没有起到作用； | E22: 需要修改：（编辑与重新计算相关） 更改类型处理类似现状的编辑颗粒，每更改一个类型，就重新进行全部统计分析。该处理需要对应：更改后，不立即全部更新，而是重新计算后统一更新 | F22: 改善 | G22: 高 | H22: 王琦
B23: 18 | C23: 检测 | D23: 有些颗粒连接分割不上 | E23: 现状OK。连接不上可能是一下两种情况： 1.同时选定连接范围的颗粒数量大于或等于3个了（一次连接操作只可连接两个颗粒，超过时不进行处理）； 2.选定需要连接的颗粒中不包含当前颗粒（编辑画面只允许编辑当前颗粒，连接的颗粒必须包含当前颗粒）； | F23: - | G23: - | H23: - | I23: -
B24: 18 | C24: 检测 | D24: 分割和连接，点击使用有时不起作用，需要再次点击一次按钮；有时候点击后切割不起作用，换不同位置反复测试，有时候就可以分割，有时不能分割 | E24: 需要调查和修改 | F24: 问题 | G24: 高 | H24: 刘洪冰
B25: 19 | C25: 报告 | D25: 这个版本点生成报告没反应 | E25: 新版本OK | F25: - | G25: - | H25: - | I25: -
B26: 20 | C26: 规程设置 | D26: 相机扫描跟本地图片规程是否考虑可以合并 | E26: 需要合并，大分支节点只有用户规程和系统规程区分 | F26: 改善 | G26: 中 | H26: 沙永刚 | I26: 完成
B27: 21 | C27: 规程设置 检测 | D27: 各级分析结果通过与否是跟哪个数据比对 | E27: 现状OK。根据规程设置-分级设置中指定【允许数量使用的归一化参数】一致 | F27: - | G27: - | H27: - | I27: -
B28: 22 | C28: 规程设置 检测 | D28: 关于归一化参数选择需要可设定 | E28: 加分项，需要增加该功能 | F28: 新需求 | G28: 低 | I28: 二期
B29: 23 | C29: 检测 | D29: 没有某一颗粒不参与计算的选项 | E29: 需要修改：只需在进行全部类型统计时，不参与计算的类型不参与全部类型的统计分析运算，但不参与全部类型计算的类型，自己的相关测量数据，及图库展示正常，与现状一致；另外全部类型的滤膜覆盖率包含不参与计算的颗粒类型 | F29: 问题 | G29: 高 | H29: 沙永刚 | I29: 完成
B30: 24 | C30: 检测 | D30: 图库模式，提供Grid列头点击排序（图库要联动） | E30: 因为分页设计到数据库重新检索问题，画面UI中统一为不可点击Grid列头排序 | F30: 改善 | G30: 中 | H30: 王琦
B31: 25 | C31: 算法 | D31: 测试压缩前后对比数据，得出数据 | E31: 需要对比测试 | F31: 改善 | G31: 低 | H31: 沙永刚
B32: 26 | C32: 全体 | D32: 多次测量分析等操作后，内存是否释放 | E32: 需要优化分析，如有问题需要进行改善 | F32: 改善 | G32: 中 | H32: 王新贺

Sheet 额外作业
G1: =SUM(G3:G33) -> 126
B2: No | C2: 项目 | D2: 内容 | E2: 担当 | F2: 月份 | G2: 工作量(人日)
B3: 1 | C3: 矿研院 | D3: 高倍(500X)扫描自动聚焦调研、调试、优化 | E3: 沙永刚 | F3: 5 | G3: 3
B4: 2 | C4: 矿研院 | D4: 聚焦补偿算法调研、实现、验证、优化 | E4: 沙永刚 | F4: 5 | G4: 8
B5: 3 | C5: Metis2.0 | D5: 自动聚焦及聚焦补偿实现及调试 | E5: 沙永刚 | F5: 5 | G5: 2
B6: 4 | C6: Metis2.0 | D6: M3H样品台既存问题修改 | E6: 沙永刚 | F6: 5 | G6: 1
B7: 5 | C7: Metis2.0 | D7: 相机和样品台问题测试 | E7: 王琦 | F7: 5 | G7: 5
B8: 6 | C8: PCB手动测量 | D8: 需求分析、制定开发计划，出差深圳 | E8: 宋珊珊 | F8: 5月 | G8: 11
B9: 7 | C9: 自动PCB接口 | D9: 需求分析，源代码了解 | E9: 宋珊珊 | F9: 5月 | G9: 1.5
B10: 8 | C10: Metis2.0 | D10: 自动景深扩展问题调查 | E10: 沙永刚 | F10: 6 | G10: 1
B11: 9 | C11: PCB手动测量 | D11: 多方案制定及功能点补充及细化 | E11: 宋珊珊 | F11: 6月 | G11: 5
B12: 10 | C12: 自动PCB接口 | D12: 接口需求确认、方案设计、功能开发、测试、现场调试、用户培训 | E12: 宋珊珊 | F12: 6月 | G12: 8.5
B13: 11 | C13: Metis2.0 | D13: 需求优化、Bug修改 | E13: 宋珊珊 | F13: 7月 | G13: 6.5
B14: 12 | C14: Metis2.0 | D14: 载物台一定速度调查优化 | E14: 沙永刚 | F14: 7 | G14: 3
B15: 13 | C15: Metis2.0 | D15: 专业分析-不锈钢α相面积测量 | E15: 沙永刚 | F15: 8 | G15: 3
B16: 14 | C16: Metis2.0 | D16: 自动分析-夹杂物、晶粒度、带状组织报告功能 | E16: 宋珊珊 | F16: 8 | G16: 6
B17: 15 | C17: 朗铎自动化 | D17: 现场配合测试、软件问题修改和相关文档的编写 | E17: 王琦 | F17: 7 | G17: 5
B18: 16 | C18: 朗铎自动化 | D18: 动态库的生成和使用说明书的编写 | E18: 王琦 | F18: 8月 | G18: 2
B19: 17 | C19: 永新样品台 | D19: 根据相关命令编写测试Demo程序和简单测试 | E19: 王琦 | F19: 8月 | G19: 5
B20: 18 | C20: 煤岩 | D20: 熟悉煤岩软件代码。与光镜工程师学习软件使用。 | E20: 王琦 | F20: 8月 | G20: 3
B21: 19 | C21: Metis2.0 | D21: 框架中Menu及Tab切换改修 | E21: 沙永刚 | F21: 9 | G21: 1
B22: 20 | C22: Metis2.0 | D22: 需求优化、Bug修改 | E22: 沙永刚 | F22: 9 | G22: 2
B23: 21 | C23: 永新样品台 | D23: 根据Metis2.0相关规则开发永新样品台接口。 | E23: 王琦 | F23: 9 | G23: 8
B24: 22 | C24: 永新样品台 | D24: 开发永新样品台接口程序 | E24: 王琦 | F24: 10月 | G24: 10
B25: 23 | C25: 拍照 | D25: 拍照测试 | E25: 王琦 | F25: 10月 | G25: 5
B26: 24 | C26: 永新样品台 | D26: 硬件联调，加拍照拼图等测试。 | E26: 王琦 | F26: 11月 | G26: 5
B27: 25 | C27: 朗铎自动化 | D27: CLI接口测试及相关会议讨论等。 | E27: 王琦 | F27: 11月 | G27: 3
B28: 26 | C28: Metis2.0 | D28: AI中增加自动分析通用报告功能 | E28: 宋珊珊 | F28: 9月 | G28: 1
B29: 27 | C29: 自动切片 | D29: Office导出报告异常等问题处理、去掉公司相关信息等 | E29: 宋珊珊 | F29: 9月 | G29: 2
B30: 28 | C30: 裂变项目 | D30: 了解裂变项目相关资料 | E30: 宋珊珊 | F30: 9月 | G30: 2
B31: 29 | C31: 铝合金报告 | D31: 需求调研、工作量评估、模板制作 | E31: 宋珊珊 | F31: 10月 | G31: 3.5
B32: 30 | C32: 铝合金报告 | D32: 数据源设定、报告调试、打印样式调试 | E32: 宋珊珊 | F32: 11月 | G32: 3.5
B33: 31 | C33: 裂变项目会议 | D33: 裂变项目现有功能演示及与老师进行确认 | E33: 宋珊珊 | F33: 11月 | G33: 0.5
B34: 32 | C34: Metis2.0 | D34: 增加新的晶粒度报告模板 | E34: 宋珊珊 | F34: 11月 | G34: 0.5
B35: 33 | C35: 宽动态摄像机之事 | D35: 宽动态摄像机对接光镜李明与王琦 | E35: 王新贺 | F35: 9 | G35: 0.5
B36: 34 | C36: 煤岩项目 | D36: 录制贾工讲解煤岩操作视频 | E36: 王新贺 | F36: 8月 | G36: 1
B37: 35 | C37: 机械手项目 | D37: 锻锤-锤断铁块后传送带到位置后，机械手识别扫描等等 | E37: 王新贺 | F37: 11月 | G37: 4

Sheet 宋珊珊审核修改
A1: 序号 | B1: 类型 | C1: 工作内容 | D1: 日期 | E1: 用时（天）
A2: 1 | B2: 会议 | C2: 《Metis2框架下开发经验分享及代码审查》 | D2: 2022-05-26 | E2: 0.4
A3: 2 | B3: 会议 | C3: 《清洁度项目开发例会》 | D3: 2022-06-30 | E3: 0.2
A4: 3 | B4: 会议 | C4: 《清洁度培训会议》 | D4: 2022-09-02 | E4: 0.4
A5: 4 | B5: 会议 | C5: 《清洁度会议》 | D5: 2022-09-22 | E5: 0.3
A6: 5 | B6: 会议 | C6: 《清洁度会议》 | D6: 2022-11-09 | E6: 0.3
A7: 6 | B7: 会议 | C7: 会议纪要整理 | D7: 2022-06-30 | E7: 0.1
A8: 7 | B8: 会议 | C8: 开会讨论图库模式及报告中所需图片的处理方式 | D8: 2022-07-08 | E8: 0.2
A9: 8 | B9: 会议 | C9: 参加清洁度数据结构调整会议 | D9: 2022-07-19 | E9: 0.3
A10: 9 | B10: 会议 | C10: 参加清洁度会议 | D10: 2022-08-04 | E10: 0.2
A11: 10 | B11: 会议 | C11: 参加清洁度项目会议 | D11: 2022-08-23 | E11: 0.2
A12: 11 | B12: 会议 | C12: 沟通合并项目数据结构 | D12: 2022-09-27 | E12: 0.3
A13: 12 | B13: 会议 | C13: 参加清洁度会议 | D13: 2022-10-11 | E13: 0.2
A14: 13 | B14: 会议 | C14: 参加清洁度会议 | D14: 2022-10-18 | E14: 0.2
A15: 14 | B15: 会议 | C15: 与沙哥沟通测试书编写 | D15: 2022-11-08 | E15: 0.2
A16: 16 | B16: 会议 | C16: 参加清洁度会议纪要问题讨论会议 | D16: 2022-11-10 | E16: 0.3
A17: 17 | B17: 调研 | C17: 清洁度中菜单内的工具项要求可以用户进行配置。通过metis自定义界面功能中进行统一配置 | D17: 2022-06-30 | E17: 1
A18: 18 | B18: 调研 | C18: 调研Metis中标尺设置功能 | D18: 2022-09-21 | E18: 0.7
A19: 19 | B19: 调研 | C19: Metis快捷键设置功能调研 | D19: 2022-10-08 | E19: 0.9
A20: 20 | B20: 调研 | C20: 调研直方图控件 | D20: 2022-10-25 | E20: 1
A21: 21 | B21: 调研 | C21: 调研实时预览中的相机设置处理过程 | D21: 2022-11-08 | E21: 0.7
A22: 22 | B22: 调研 | C22: 调研清洁度中缩小屏幕内容显示不全的画面 | D22: 2022-11-15 | E22: 0.5
A23: 23
A24: 24 | B24: Bug | C24: 浏览项目时，右侧展示区的文本框可以输入，应不可输入（可参照检测结果画面的分级模式） | D24: 2022-08-22 | E24: 1
A25: 25 | B25: 代码规范 | C25: 画面布局需要调整，包括控件对齐，文字显示不全等 | D25: 2022-08-22
A26: 26 | B26: 变更 | C26: 左侧展示的项目列表，不以零部件名称展示，应以[项目编号:项目名称]形式展示 | D26: 2022-08-22
A27: 27 | B27: 变更 | C27: 需要增加一个零件体积 | D27: 2022-08-22
A28: 28 | B28: Bug | C28: 柱状图缺少横轴和竖轴的说明，可以参照检测结果画面 | D28: 2022-08-22
A29: 29 | B29: 代码规范 | C29: 代码缩进未对齐 | D29: 2022-08-22
A30: 30 | B30: 代码规范 | C30: 部分编码与规范不一致（多处） | D30: 2022-08-22
A31: 31 | B31: Bug | C31: 本地化资源定义需要适当调整 | D31: 2022-08-22
A32: 34 | B32: Bug | C32: 页面初始化后，没有默认项目展示 | D32: 2022-08-22
A33: 35 | B33: Bug | C33: 左侧树节点，节点应该时间倒序排列 | D33: 2022-08-22
A34: 32 | B34: Bug | C34: 关于画面布局，如可能，则尽可能使用IDE属性面板设定，而不是在代码中设定；另外关于布局设定，不应该发生异常，不需要异常捕获 | D34: 2022-08-22
A35: 33 | B35: Bug | C35: 循环内判断写法可以简化 | D35: 2022-08-19 | E35: 0.5
A36: 36 | B36: Bug | C36: 检测时间，为检测项目创建时间(DB表Testing.CreateTime) | D36: 2022-09-02 | E36: 0.5
A37: 37 | B37: Bug | C37: 树控件过于靠画面左侧，需要调整 | D37: 2022-09-02
A38: 38 | B38: Bug | C38: 项目查看时，界面标题与实际显示内容不一致.并且与通常设置中的检测结果默认显示方式不一致 | D38: 2022-09-15 | E38: 1
A39: 39 | B39: Bug | C39: 项目查看时，显示内容为分极模式时，点击检测中的“图库模式”，切换模式时会报错 | D39: 2022-09-15
A40: 40 | B40: 变更 | C40: 报告输出，缺少滤膜概图，缺少各类型颗粒图片及信息 | D40: 2022-09-05 | E40: 1
A41: 41 | B41: Bug | C41: 报告中图片是黑色的，没有正确输出 | D41: 2022-09-05
A42: 42 | B42: Bug | C42: 报告中图片尺寸，和规程设置不一致（如果报告中，固定每行只有两个照片，那么规程设置图片尺寸就没有太大用处，需要确认报告中多大尺寸合适）；报告中其他输出是否和规程中设置一致，需要确认 | D42: 2022-09-07 | E42: 1
A43: 43 | B43: Bug | C43: 检测前设置的送检照片，报告中没有输出 | D43: 2022-09-07
A44: 44 | B44: Bug | C44: 代码中的使用固定汉字作为输出内容了，需要国际化 | D44: 2022-09-07
A45: 45 | B45: Bug | C45: 报告中出现空白页面（最后一页） | D45: 2022-09-20 | E45: 0.1
A46: 46 | B46: Bug | C46: Detail中图表组合显示效果异常问题处理 | D46: 2022-07-06 | E46: 0.5
A47: 47 | B47: Bug | C47: 清洁度中报告模板中文件路径及数据库连接相对路径处理 | D47: 2022-08-10 | E47: 0.3
A48: 48 | B48: Bug | C48: 处理报告传参数问题 | D48: 2022-08-24 | E48: 1
A49: 49 | B49: Bug | C49: 清洁度报告传参失败原因分析及处理 | D49: 2022-08-31 | E49: 0.5
A50: 50 | B50: Bug | C50: 颗粒编辑中的分割功能bug处理 | D50: 2022-10-11 | E50: 0.2
A51: 51 | B51: Bug | C51: 处理图库模式及分级模式两个画面显示不全问题 | D51: 2022-11-15 | E51: 1
A52: 52 | B52: Bug | C52: 处理规程管理画面内容显示不全问题 | D52: 2022-11-16 | E52: 1
A53: 53 | B53: Bug | C53: 规程管理中分级设置界面调整 | D53: 2022-11-16
A54: 54 | B54: Bug | C54: 图库模式标尺显示问题处理 | D54: 2022-11-17 | E54: 1
A55: 55 | B55: Bug | C55: 检测结果显示与通常设置中“检测结果默认显示”设置不一致 | D55: 2022-09-15 | E55: 0.8
A56: 56 | B56: 变更 | C56: 制作林工提供的最新清洁度报告模板 | D56: 2022-07-06 | E56: 0.5
A57: 57 | B57: 变更 | C57: 更新报告模板调用相关参数配置 | D57: 2022-07-12 | E57: 1
A58: 58 | B58: 变更 | C58: 更新报告模板调用相关参数配置 | D58: 2022-07-14 | E58: 0.3
A59: 59 | B59: 变更 | C59: 更新报告数据源处理相关代码 | D59: 2022-07-18 | E59: 1
A60: 60 | B60: 变更 | C60: 清洁度报告数据结构调整后数据重新组织后测试及调整 | D60: 2022-07-21 | E60: 1.7
A61: 61 | B61: 变更 | C61: 研究DetailReport的用法，解决数据重复显示问题 | D61: 2022-07-25 | E61: 1
A62: 62 | B62: 变更 | C62: 修改清洁度报告模板，增加颗粒图片显示 | D62: 2022-07-25
A63: 63 | B63: 变更 | C63: 修改报告数据源结构 | D63: 2022-07-25
A64: 64 | B64: 变更 | C64: 更新报表数据组织相关代码 | D64: 2022-08-01 | E64: 1
A65: 65 | B65: 变更 | C65: 颗粒图片截取、更新报告模板及测试 | D65: 2022-08-02 | E65: 1
A66: 66 | B66: 变更 | C66: 颗粒图片上增加标尺 | D66: 2022-08-03 | E66: 1
A67: 67 | B67: 变更 | C67: 清洁度报表中增加颗粒度类型配置功能 | D67: 2022-08-04 | E67: 0.5
A68: 68 | B68: 变更 | C68: 清洁度报告模板增加动态样式调整功能 | D68: 2022-08-08 | E68: 0.5
A69: 69 | B69: 变更 | C69: 清洁度报告模板中用DetailReport替换子报告 | D69: 2022-08-24 | E69: 1.2
A70: 70 | B70: 变更 | C70: 更换清洁度设置模块中部分图标 | D70: 2022-10-31 | E70: 0.8
A71: 71 | B71: 变更 | C71: 菜单中图标更换 | D71: 2022-11-01 | E71: 1
A72: 72 | B72: 变更 | C72: 预览窗体中操作图标更换 | D72: 2022-11-02 | E72: 1
A73: 73 | B73: 变更 | C73: 按要求更新项目管理模块测试书 | D73: 2022-11-09 | E73: 0.5
A74: 74 | B74: 变更 | C74: 分析图库模式下表格无法调整列宽原因，实现调整列宽功能 | D74: 2022-11-11 | E74: 0.7
A75: 75 | B75: 变更 | C75: 规程浏览、项目浏览加右键快捷菜单功能及图标 | D75: 2022-11-14 | E75: 0.9
A76: 76 | B76: 变更 | C76: 报告中数量，以使用归一化参数为准 | D76: 2022-09-23 | E76: 0.3
A77: 77 | B77: 变更 | C77: CCC编码，需要追加到报告中 | D77: 2022-09-23 | E77: 0.1
A78: 78 | B78: 规范代码 | C78: 清洁度代码调整 | D78: 2022-08-30 | E78: 0.3
A79: 79 | B79: 变更 | C79: 优化图片上的标尺 | D79: 2022-09-15 | E79: 0.7
A80: 80 | B80: 变更 | C80: 更新报告生成时的图片与标记样式相关部分 | D80: 2022-09-20 | E80: 0.1
A81: 81 | B81: 变更 | C81: 更新报告生成时的图片与标记样式相关部分 | D81: 2022-09-23 | E81: 0.8
A82: 82 | B82: 变更 | C82: 清洁度会议关于普通检测项目报告中修改内容处理 | D82: 2022-09-26 | E82: 0.9
A83: 83 | B83: 变更 | C83: 颗粒图片显示标尺功能修改 | D83: 2022-10-12 | E83: 2
A84: 84 | B84: 变更 | C84: 清洁度报告模板滤膜覆盖率调整 | D84: 2022-10-17 | E84: 1
A85: 85 | B85: Bug | C85: 标尺样式设置界面修改 | D85: 2022-10-17
A86: 86 | B86: Bug | C86: 修改form.recx中的错误项修改 | D86: 2022-10-19 | E86: 0.2
A87: 87 | B87: 规范代码 | C87: 引用DLL确认，清理不使用的DLL | D87: 2022-10-20 | E87: 0.2
A88: 88 | B88: 变更 | C88: 清洁度报告中格式调整、变更数据项目等问题处理 | D88: 2022-10-26 | E88: 1
A89: 89 | B89: 新增 | C89: 合并项目报告数据组织 | D89: 2022-09-27 | E89: 1.8
A90: 90 | B90: 新增 | C90: 合并项目报告模板制作 | D90: 2022-09-29 | E90: 1
A91: 91 | B91: 新增 | C91: 报告预览是两种模板兼容问题处理 | D91: 2022-09-30 | E91: 1
A92: 92 | B92: 新增 | C92: 报告中控件动态调整功能 | D92: 2022-09-30
A93: 93 | B93: 调研 | C93: Devexpress 报表控件发布测试 | D93: 2022-10-09 | E93: 0.5
A94: 94 | B94: 新增 | C94: 偏光设置功能需求调研 | D94: 2022-10-21 | E94: 1
A95: 95 | B95: 新增 | C95: 亮度设置处理过程梳理 | D95: 2022-10-26 | E95: 0.5
A96: 96 | B96: 新增 | C96: 更新清洁度额外工作记录 | D96: 2022-11-07 | E96: 0.1
A97: 97 | B97: 新增 | C97: 增加清空缓存后相关位置的处理 | D97: 2022-11-11 | E97: 0.2

Sheet 王琦审核修改修改
A1: 序号 | B1: 类型 | C1: 工作内容 | D1: 日期 | E1: 用时（天）
A2: 1 | B2: 会议 | C2: 《Metis2框架下开发经验分享及代码审查》 | D2: 2022-05-26 | E2: 0.4
A3: 2 | B3: 会议 | C3: 《清洁度项目开发例会》 | D3: 2022-06-30 | E3: 0.2
A4: 3 | B4: 会议 | C4: 开会讨论图库模式及报告中所需图片的处理方式 | D4: 2022-07-08 | E4: 0.2
A5: 4 | B5: 会议 | C5: 参加清洁度数据结构调整会议 | D5: 2022-07-19 | E5: 0.3
A6: 5 | B6: 会议 | C6: 参加清洁度会议 | D6: 2022-08-04 | E6: 0.2
A7: 6 | B7: 会议 | C7: 参加清洁度项目会议 | D7: 2022-08-23 | E7: 0.2
A8: 7 | B8: 会议 | C8: 参加清洁度项目会议 | D8: 2022-09-05 | E8: 0.3
A9: 8 | B9: 会议 | C9: 参加清洁度项目会议 | D9: 2022-09-15 | E9: 0.3
A10: 9 | B10: 会议 | C10: 参加清洁度项目会议 | D10: 2022-09-21 | E10: 0.2
A11: 10 | B11: 会议 | C11: 参加清洁度会议 | D11: 2022-10-11 | E11: 0.2
A12: 11 | B12: 会议 | C12: 参加清洁度会议 | D12: 2022-10-18 | E12: 0.2
A13: 12 | B13: 会议 | C13: 参加清洁度会议纪要问题讨论会议 | D13: 2022-11-10 | E13: 0.3
A14: 13 | B14: 调研 | C14: Metis2.0菜单中下拉列表的使用等 | D14: 2022-06-08 | E14: 1
A15: 14 | B15: 调研 | C15: Metis2.0中如何调用蔡司相机(包括相机配置文件的切换等)和样品台 | D15: 2022-06-09 | E15: 2
A16: 15 | B16: 调研 | C16: Metis2.0中相机视场与标尺之间的换算关系 | D16: 2022-06-13 | E16: 0.5
A17: 16 | B17: Bug | C17: 缺少控制Z轴移动按钮 | D17: 2022-08-02 | E17: 0.2
A18: 17 | B18: Bug | C18: 未连接相机时，点击拍照设置相关按钮时发生异常 | D18: 2022-08-02 | E18: 0.2
A19: 18 | B19: 变更 | C19: 更改高度测试界面 | D19: 2022-08-02 | E19: 0.2
A20: 19 | B20: 变更 | C20: 高度测量界面不需要测量和保存，需要添加确定和取消按钮 | D20: 2022-08-02 | E20: 0.2
A21: 20 | B21: Bug | C21: 多滤膜选择界面窗体可以被拉动改变大小 | D21: 2022-08-03 | E21: 0.2
A22: 21 | B22: 变更 | C22: 分级模式柱状图区域可以再高一些，比如100-200像素 | D22: 2022-08-04 | E22: 0.1
A23: 22 | B23: Bug | C23: 分级模式点击项目存档按钮，没有弹出确认提示框（因为存档后不可再编辑，因此需要弹出确认框让用户确认） | D23: 2022-08-05 | E23: 0.2
A24: 23 | B24: Bug | C24: 分级模式没有任何颗粒信息时，下方表格数据显示错误 | D24: 2022-08-08 | E24: 0.2
A25: 24 | B25: Bug | C25: 分级模式分级最后是否通过，评判不正确 颗粒为零时表示通过 | D25: 2022-08-08 | E25: 0.2
A26: 25 | B26: Bug | C26: 分级模式用户能用鼠标拖动改变Grid行高（需要规定，不可改变） | D26: 2022-08-08 | E26: 0.2
A27: 26 | B27: Bug | C27: 分级模式当不同类型分级名称不完全相同时，柱状图横坐标标示错误 | D27: 2022-08-09 | E27: 0.3
A28: 27 | B28: Bug | C28: 分级模式切换颗粒类型Tab时，柱状图位置发生变化了（应固定） | D28: 2022-08-09 | E28: 0.2
A29: 28 | B29: Bug | C29: 分级列表中内容可修改了（应不可手动修改） | D29: 2022-08-09 | E29: 0.2
A30: 29 | B30: Bug | C30: 分级模式需要追加一个是否存档表示项目 | D30: 2022-09-05 | E30: 0.2
A31: 30 | B31: Bug | C31: 分级模式是否通过，数据库已有保存，该画面是否有必要重新计算？ | D31: 2022-09-09 | E31: 0.2
A32: 31 | B32: Bug | C32: 分级模式列头缺少名称 | D32: 2022-09-15 | E32: 0.2
A33: 32 | B33: 变更 | C33: ①缩略图区域背景颜色太浅 ②右上角显示图片区域加个细的边框，避免无图时无边界 | D33: 2022-08-10 | E33: 0.2
A34: 33 | B34: Bug | C34: 图库模式画面布局问题 | D34: 2022-08-10 | E34: 0.2
A35: 34 | B35: Bug | C35: 按钮高度未统一到25像素 | D35: 2022-08-10 | E35: 0.2
A36: 35 | B36: Bug | C36: 图库模式颗粒类型转换按钮，只有在选中颗粒时才可用，并且只有该选中颗粒类型外的另外两种类型按钮才可用 | D36: 2022-08-11 | E36: 0.2
A37: 36 | B37: Bug | C37: ①颗粒信息列表中[颗粒分类]列显示内容不正确 ②颗粒信息列表需要追加一列[分级] | D37: 2022-08-12 | E37: 0.5
A38: 37 | B38: Bug | C38: 颗粒信息列表中的灰度均值显示的都是0，确认是否正确 | D38: 2022-08-15 | E38: 0.1
A39: 38 | B39: Bug | C39: 颗粒信息列表列头中缺少计量单位 | D39: 2022-08-15 | E39: 1
A40: 39 | B40: Bug | C40: 需要将选中缩略图与颗粒信息表中对应数据行关联，即选中缩略图自动选择下边对应颗粒数据行；同理，选择下边数据行，需要自动选择上边缩略图 | D40: 2022-08-16 | E40: 0.4
A41: 40 | B41: Bug | C41: 缩略图展示区滚动条问题：下方没有图片了，滚动条还可以拖动 | D41: 2022-08-17 | E41: 0.5
A42: 41 | B42: Bug | C42: 出现缩略图表示不全的问题，建议至少显示一个完整颗粒 | D42: 2022-08-17 | E42: 0.5
A43: 42 | B43: Bug | C43: 右键设置颗粒信息列表显示的时候，上边缩略图显示被刷新了（不应该刷新） | D43: 2022-08-18 | E43: 0.2
A44: 43 | B44: Bug | C44: 检测结果未归档时，弹出的对话框不正确：未使用MessageDialog共通画面，同时缺少[否]的按钮 | D44: 2022-08-18 | E44: 0.2
A45: 44 | B45: Bug | C45: 未输出报告时，点击工具栏按钮不需要提示是否输出报告提示 | D45: 2022-08-18 | E45: 0.2
A46: 45 | B46: Bug | C46: 没有检测结果表示使，点击工具栏存档等按钮，不需要有反应 | D46: 2022-08-18 | E46: 0.2
A47: 46 | B47: Bug | C47: 颗粒标尺未使用系统设置的标尺样式 | D47: 2022-08-19 | E47: 0.5
A48: 47 | B48: Bug | C48: 系统设置中，改变图片默认尺寸大小，图库模式的图片没有马上根据设置立即刷新大小（其他影响画面的设置生效后，也应刷新画面） | D48: 2022-08-19 | E48: 1
A49: 48 | B49: Bug | C49: 系统设置中，改变显示颗粒数量和最小尺寸后，再去图库模式改变颗粒幅度，发生异常（偶发，未找到规律） | D49: 2022-08-23 | E49: 0.8
A50: 49 | B50: Bug | C50: 通过图库模式左侧的下拉框，改变图片大小时，中间显示图片区域的刷新有性能问题，出现"花屏"了 | D50: 2022-08-25 | E50: 0.5
A51: 50 | B51: Bug | C51: 没有任何颗粒信息时，点击是否显示轮廓CheckBox时发生异常 | D51: 2022-08-26 | E51: 0.2
A52: 51 | B52: Bug | C52: 改变颗粒类型时，发生异常了 | D52: 2022-08-26 | E52: 0.3
A53: 52 | B53: Bug | C53: 图片来源：本地图片的场合，实时预览及高度测量应不可用 | D53: 2022-08-26 | E53: 0.2
A54: 53 | B54: Bug | C54: 右上角的偏光或明场RadioButton，要根据规程设置来控制其是否可用 | D54: 2022-08-26 | E54: 0.2
A55: 54 | B55: Bug | C55: 右上角的颗粒预览按钮，修改下文字内容[颗粒预览]→[实时预览] | D55: 2022-08-26 | E55: 0.1
A56: 55 | B56: Bug | C56: 判断条件中，特征参数使用了硬编码，后续国际化后可能会有Bug | D56: 2022-08-29 | E56: 1
A57: 56 | B57: Bug | C57: 颗粒编辑后，返回图库模式，图片都变为黑色了 | D57: 2022-08-30 | E57: 0.4
A58: 57 | B58: Bug | C58: 下边没有图片了，滚动条却还可以拖动 | D58: 2022-08-30 | E58: 0.2
A59: 58 | B59: Bug | C59: 图库模式图片，默认需要显示明场图片，下边数据列表中数据的平均灰度需要用明场的平均灰度 | D59: 2022-08-30 | E59: 0.1
A60: 59 | B60: Bug | C60: 使用[平均灰度]排序时，颗粒图片显示不正确 | D60: 2022-08-30 | E60: 0.3
A61: 60 | B61: 变更 | C61: 重新计算按钮，是否需要保留，如不需要则删除 | D61: 2022-11-15 | E61: 4
A62: 61 | B62: Bug | C62: 选择颗粒后，点击“删除颗粒”按钮后，颗粒信息依然存在 | D62: 2022-08-31 | E62: 0.5
A63: 62 | B63: Bug | C63: 颗粒编辑画面布局中GroupBox间过于紧密 | D63: 2022-08-31 | E63: 0.1
A64: 63 | B64: Bug | C64: 颗粒轮廓未对齐（使用林工图片，偏光[MD-Experiment-0001_p042.jpg]） | D64: 2022-08-31 | E64: 0.2
A65: 64 | B65: Bug | C65: 图片控件缺少边框，用户很难发现可以双击选择照片 | D65: 2022-09-01 | E65: 0.2
A66: 65 | B66: Bug | C66: 多工位时，规程设置的共有项目，检测输入时，没有在各个滤膜间共有，需要一个输入了，对于共有项目，一个工位的输入了，其他工位的应自动变为相同（已最后输入为准） | D66: 2022-09-01 | E66: 1.5
A67: 66 | B67: Bug | C67: 对于规程设置的必要的项目，检测输入时如果未输入(0代表未输入），则需要提示 | D67: 2022-09-05 | E67: 0.3
A68: 67 | B68: Bug | C68: Tab键顺序不对，应该根据规程设置的Tab顺序设定（需要规程设置画面，增加Tab顺序属性） | D68: 2022-09-05 | E68: 0.1
A69: 68 | B69: Bug | C69: 保存信息时报错。 | D69: 2022-09-05 | E69: 0.1
A70: 69 | B70: Bug | C70: 相机预览区域，不需要GroupBox | D70: 2022-09-06 | E70: 0.1
A71: 70 | B71: Bug | C71: 信息GroupBox过于拥挤 | D71: 2022-09-06 | E71: 0.1
A72: 71 | B72: Bug | C72: 途中点击停止按钮后，确认对话框没有关闭 | D72: 2022-09-06 | E72: 0.2
A73: 72 | B73: Bug | C73: 扫描信息展示内容需要调整 | D73: 2022-09-06 | E73: 0.2
A74: 73 | B74: Bug | C74: 扫描信息中展示的滤膜背景色，需要和右侧扫描进度一致 | D74: 2022-09-06 | E74: 0.2
A75: 74 | B75: Bug | C75: 点击多滤膜→选择工位→输入检测信息→弹出物镜提示框（不要点确定），此时点工具栏的停止按钮，再关闭物镜提示框的取消按钮；然后再去点工具栏的多滤膜重新开始检测，则出现扫描进展画面，没有动态展示扫描进度，如果这个时候点击单滤膜，则提示正在扫描检测了 | D75: 2022-09-07 | E75: 0.4
A76: 75 | B76: Bug | C76: 检测时的信息输入，与规程设置不一致；另外ComboBox要求可以自由输入，不是不许从下拉框中选择 | D76: 2022-09-07 | E76: 0.4
A77: 76 | B77: Bug | C77: DAO层，事务处理使用不当，异常捕获使用不不当（该层通常不进行异常捕获，系统自动抛出即可） | D77: 2022-09-07 | E77: 0.2
A78: 77 | B78: Bug | C78: 关闭Tab页面的语句可以简化写法，TestingAction.cs内有两处类似代码，可参照如下修改： //关闭结果展示界面 foreach (var no in new []{ "", "1","2", "3","4", "5","6"}) { e.FormContext.ClosePage(ActionType.TestingBarDisplay + no); e.FormContext.ClosePage(ActionType.TestingGrainDisplay + no); } | D78: 2022-09-08 | E78: 0.1
A79: 78 | B79: Bug | C79: 缺少偏光及明场切换的提示业务处理，该处理也是需要根据系统设置来判定是否弹出，也是需要判定是否有硬件控制器接口可调用 需要在[设置-通常设置]画面增加，是否弹出该对话框的设置 | D79: 2022-09-08 | E79: 0.2
A80: 79 | B80: Bug | C80: 预览区域背景色与其他区域背景色一致了，没有相机预览时，没有预览边界，需要将预览区域背景色适当深一点 | D80: 2022-09-08 | E80: 0.05
A81: 80 | B81: Bug | C81: 点击图片模式后，发生异常 | D81: 2022-09-08 | E81: 0.1
A82: 81 | B82: Bug | C82: 放大倍数下拉框显示的是倍数，不应该是标尺名称，下拉框内容应从配置文件读取 | D82: 2022-09-08 | E82: 0.1
A83: 82 | B83: Bug | C83: 标尺，应该显示可选下拉框，下拉框内容为标尺名 | D83: 2022-09-08 | E83: 0.1
A84: 83 | B84: Bug | C84: 需要增加一个分辨率表示项（不可输入） | D84: 2022-09-08 | E84: 0.05
A85: 84 | B85: Bug | C85: 需要追加一个测量设置按钮，弹出测量设置画面 | D85: 2022-09-08 | E85: 0.1
A86: 85 | B86: Bug | C86: 改变画面尺寸后，画面布局不合理。建议该画面可以最大化（无最小化） | D86: 2022-09-08 | E86: 0.05
A87: 86 | B87: Bug | C87: 重新测量按钮的图标不易理解，可以换成类似带返回复原箭头的图标 | D87: 2022-09-08 | E87: 0.05
A88: 87 | B88: 变更 | C88: 图库模式分页显示 | D88: 2022-11-10 | E88: 3
A89: 88 | B89: 变更 | C89: 颗粒编辑后切换其他界面处理功能 | D89: 待完成
A90: 89 | B90: 需求增加 | C90: 检测物镜转盘是否与规程相同，不同则弹出对话框选择。 | D90: 待完成

Sheet 沙永刚审核修改
A1: 序号 | B1: 类型 | C1: 工作内容 | D1: 日期 | E1: 用时（天）
A2: 1 | B2: 会议 | C2: 清洁度相关业务确认及审查 | D2: 2022-05-12 | E2: 0.3
A3: 2 | B3: 会议 | C3: 清洁度相关业务确认及审查 | D3: 2022-05-26 | E3: 0.3
A4: 3 | B4: 会议 | C4: 清洁度相关业务确认及审查 | D4: 2022-06-30 | E4: 0.3
A5: 4 | B5: 会议 | C5: 清洁度相关业务确认及审查 | D5: 2022-07-19 | E5: 0.3
A6: 5 | B6: 会议 | C6: 清洁度相关业务确认及审查 | D6: 2022-07-28 | E6: 0.3
A7: 6 | B7: 审查 | C7: 代码审查CheckList作成，并全员讲解 | D7: 2022-08-01 | E7: 0.5
A8: 7 | B8: 审查 | C8: 系统初始化 | D8: 2022-08-02 | E8: 0.5
A9: 8 | B9: 审查 | C9: 检测画面：包括工具栏各个按钮功能 | D9: 2022-08-03 | E9: 0.5
A10: 9 | B10: 审查 | C10: 图片选择画面 | D10: 2022-08-04 | E10: 0.5
A11: 10 | B11: 会议 | C11: 清洁度相关业务确认及审查 | D11: 2022-08-05 | E11: 0.3
A12: 11 | B12: 审查 | C12: 项目选择画面 | D12: 2022-08-05 | E12: 0.5
A13: 12 | B13: 会议 | C13: 清洁度相关业务确认及审查 | D13: 2022-08-08 | E13: 0.3
A14: 13 | B14: 审查 | C14: 滤膜工位选择画面 | D14: 2022-08-08 | E14: 0.5
A15: 14 | B15: 审查 | C15: 滤膜信息输入画面 | D15: 2022-08-09 | E15: 0.5
A16: 15 | B16: 审查 | C16: 拼图进度展示画面 | D16: 2022-08-10 | E16: 0.5
A17: 16 | B17: 审查 | C17: 算法部分：1.拼图、2.测量、3.轮廓、4.图片分割 | D17: 2022-08-11 | E17: 0.5
A18: 17 | B18: 审查 | C18: 颗粒编辑窗口 | D18: 2022-08-12 | E18: 0.5
A19: 18 | B19: 审查 | C19: 实时预览画面 | D19: 2022-08-15 | E19: 0.5
A20: 19 | B20: 审查 | C20: 高度测量画面 | D20: 2022-08-16 | E20: 0.5
A21: 20 | B21: 审查 | C21: 检测结果-图库模式 | D21: 2022-08-17 | E21: 0.5
A22: 21 | B22: 审查 | C22: 检测结果-分级模式 | D22: 2022-08-18 | E22: 0.5
A23: 22 | B23: 审查 | C23: 项目浏览画面：包括工具栏上各个按钮功能 | D23: 2022-08-19 | E23: 0.5
A24: 23 | B24: 会议 | C24: 清洁度相关业务确认及审查 | D24: 2022-08-23 | E24: 0.3
A25: 24 | B25: 会议 | C25: 清洁度相关业务确认及审查 | D25: 2022-09-02 | E25: 0.3
A26: 25 | B26: 审查 | C26: 项目合并确认画面 | D26: 2022-09-05 | E26: 0.5
A27: 26 | B27: 审查 | C27: 报告模板 | D27: 2022-09-06 | E27: 0.5
A28: 27 | B28: 会议 | C28: 清洁度相关业务确认及审查 | D28: 2022-09-07 | E28: 0.3
A29: 28 | B29: 审查 | C29: 存储设置画面 | D29: 2022-09-07 | E29: 0.5
A30: 29 | B30: 审查 | C30: 实验室信息画面 | D30: 2022-09-08 | E30: 0.5
A31: 30 | B31: 审查 | C31: 标尺设置画面 | D31: 2022-09-09 | E31: 0.5
A32: 31 | B32: 会议 | C32: 清洁度相关业务确认及审查 | D32: 2022-09-15 | E32: 0.3
A33: 32 | B33: 审查 | C33: 测量设置画面 | D33: 2022-09-19 | E33: 0.5
A34: 33 | B34: 审查 | C34: 聚焦参数设置 | D34: 2022-09-20 | E34: 0.5
A35: 34 | B35: 审查 | C35: 客户管理画面 | D35: 2022-09-21 | E35: 0.5
A36: 35 | B36: 会议 | C36: 清洁度相关业务确认及审查 | D36: 2022-09-22 | E36: 0.3
A37: 36 | B37: 审查 | C37: 零部件管理 | D37: 2022-09-22 | E37: 0.5
A38: 37 | B38: 审查 | C38: 用户管理画面 | D38: 2022-09-23 | E38: 0.5
A39: 38 | B39: 审查 | C39: 帮助目录画面 | D39: 2022-09-23 | E39: 0.5
A40: 39 | B40: 审查 | C40: 关于画面 | D40: 2022-09-23 | E40: 0.5
A41: 40 | B41: Bug | C41: 规程设置-执行流程设置修改 | D41: 2022-09-28 | E41: 0.5
A42: 41 | B42: Bug | C42: 图库模式Grid增加灰度相关列 | D42: 2022-09-28 | E42: 0.5
A43: 42 | B43: 需求增加 | C43: 分析范围交互画面 | D43: 2022-09-28 | E43: 3
A44: 43 | B44: Bug | C44: 分析范围交互设定 | D44: 2022-09-29 | E44: 0.5
A45: 44 | B45: Bug | C45: 合并项目滤膜覆盖率计算 | D45: 2022-09-29 | E45: 0.5
A46: 45 | B46: Bug | C46: 项目合并画面 | D46: 2022-09-29 | E46: 0.5
A47: 46 | B47: Bug | C47: 分析处理流程共通化 | D47: 2022-09-29 | E47: 0.5
A48: 47 | B48: Bug | C48: 分级性能优化 | D48: 2022-09-30 | E48: 0.5
A49: 48 | B49: Bug | C49: 规程设置-报告模板页修改 | D49: 2022-10-08 | E49: 0.5
A50: 49 | B50: Bug | C50: 增加合并分析处理 | D50: 2022-10-08 | E50: 0.5
A51: 50 | B51: Bug | C51: 手动停止处理、归档后处理、数据库更新 | D51: 2022-10-09 | E51: 0.5
A52: 51 | B52: 会议 | C52: 清洁度相关业务确认及审查 | D52: 2022-10-11 | E52: 0.3
A53: 52 | B53: Bug | C53: 检测分析流程抽象化 | D53: 2022-10-11 | E53: 0.5
A54: 53 | B54: Bug | C54: 规程管理 | D54: 2022-10-12 | E54: 0.5
A55: 54 | B55: Bug | C55: 交互分析范围设定 | D55: 2022-10-12 | E55: 0.5
A56: 55 | B56: Bug | C56: 设置菜单 | D56: 2022-10-12 | E56: 0.5
A57: 56 | B57: Bug | C57: 分析范围画面作成 | D57: 2022-10-13 | E57: 0.5
A58: 57 | B58: Bug | C58: 图库模式Grid点击列头异常修改、规程设置-物相提取算法更换 | D58: 2022-10-13 | E58: 0.5
A59: 58 | B59: Bug | C59: 检测统计分析 | D59: 2022-10-13 | E59: 0.5
A60: 59 | B60: Bug | C60: 窗口状态、图标、ESC动作等 | D60: 2022-10-13 | E60: 0.5
A61: 60 | B61: Bug | C61: 分级设置修改 | D61: 2022-10-17 | E61: 0.5
A62: 61 | B62: Bug | C62: 项目参看问题修改 | D62: 2022-10-17 | E62: 0.5
A63: 62 | B63: Bug | C63: 颗粒编辑、算法更新 | D63: 2022-10-17 | E63: 0.5
A64: 63 | B64: 会议 | C64: 清洁度相关业务确认及审查 | D64: 2022-10-18 | E64: 0.3
A65: 64 | B65: Bug | C65: 图片来源设置 | D65: 2022-10-20 | E65: 0.5
A66: 65 | B66: Bug | C66: 删除规程新建按钮处理，增加系统内置规程 | D66: 2022-10-20 | E66: 0.5
A67: 66 | B67: Bug | C67: 参数设置修改 | D67: 2022-10-20 | E67: 0.5
A68: 67 | B68: Bug | C68: 检测分析修改 | D68: 2022-10-21 | E68: 0.5
A69: 68 | B69: Bug | C69: 规程导入导出 | D69: 2022-10-24 | E69: 0.5
A70: 69 | B70: Bug | C70: 阴影矫正规程设置、照片来源文件时尺寸限制 | D70: 2022-10-24 | E70: 0.5
A71: 70 | B71: Bug | C71: 载物台配置关联修改、颗粒位置计算、其他 | D71: 2022-10-24 | E71: 0.5
A72: 71 | B72: Bug | C72: 滤膜覆盖率修改 | D72: 2022-10-24 | E72: 0.5
A73: 72 | B73: Bug | C73: 分级模式修改 | D73: 2022-10-25 | E73: 0.5
A74: 73 | B74: Bug | C74: 清洁度编码格式错误修正 | D74: 2022-10-25 | E74: 0.5
A75: 74 | B75: Bug | C75: 清洁度编码错误修正 | D75: 2022-10-25 | E75: 0.5
A76: 75 | B76: Bug | C76: 参数名修改 | D76: 2022-10-25 | E76: 0.5
A77: 76 | B77: Bug | C77: 测量参数类型调整 | D77: 2022-10-25 | E77: 0.5
A78: 77 | B78: Bug | C78: 规程设置-信息模板更新 | D78: 2022-10-26 | E78: 0.5
A79: 78 | B79: Bug | C79: 报告处理 | D79: 2022-10-26 | E79: 0.5
A80: 79 | B80: Bug | C80: 规程设置 | D80: 2022-10-26 | E80: 0.5
A81: 80 | B81: Bug | C81: 信息模板支持小数位设定 | D81: 2022-10-26 | E81: 0.5
A82: 81 | B82: Bug | C82: 信息模板及报告相关 | D82: 2022-10-26 | E82: 0.5
A83: 82 | B83: Bug | C83: 扫描进展画面 | D83: 2022-10-27 | E83: 0.5
A84: 83 | B84: Bug | C84: 报告处理 | D84: 2022-10-27 | E84: 0.5
A85: 84 | B85: Bug | C85: 工位选择画面 | D85: 2022-10-27 | E85: 0.5
A86: 85 | B86: Bug | C86: 检测分析菜单 | D86: 2022-10-27 | E86: 0.5
A87: 86 | B87: Bug | C87: 颗粒编辑及分析最小尺寸限定相关 | D87: 2022-10-28 | E87: 0.5
A88: 87 | B88: Bug | C88: 颗粒编辑相关 | D88: 2022-10-28 | E88: 0.5
A89: 88 | B89: Bug | C89: 分析范围交互画面 | D89: 2022-10-28 | E89: 0.5
A90: 89 | B90: Bug | C90: 主菜单选择函数实现方式修改 | D90: 2022-10-31 | E90: 0.5
A91: 90 | B91: Bug | C91: 系统规程 | D91: 2022-10-31 | E91: 0.5
A92: 91 | B92: Bug | C92: 选择菜单函数：函数名及参数名修改 | D92: 2022-10-31 | E92: 0.5
A93: 92 | B93: Bug | C93: 根据框架事件触发机制，修改原事件注册方式（清洁度相关） | D93: 2022-10-31 | E93: 0.5
A94: 93 | B94: Bug | C94: 信息输入模板 | D94: 2022-10-31 | E94: 0.5
A95: 94 | B95: Bug | C95: 实时预览、物镜转盘、倍率设定 | D95: 2022-11-01 | E95: 0.5
A96: 95 | B96: Bug | C96: 实时预览 | D96: 2022-11-01 | E96: 0.5
A97: 96 | B97: Bug | C97: 图库模式 | D97: 2022-11-02 | E97: 0.5
A98: 97 | B98: Bug | C98: 颗粒编辑 | D98: 2022-11-02 | E98: 0.5
A99: 98 | B99: Bug | C99: 测量算法更新 | D99: 2022-11-02 | E99: 0.5
A100: 99 | B100: Bug | C100: 工程修改 | D100: 2022-11-02 | E100: 0.5
A101: 100 | B101: Bug | C101: 修改主菜单[硬件显示的]控制 | D101: 2022-11-02 | E101: 0.5
A102: 101 | B102: Bug | C102: 工程修改 | D102: 2022-11-02 | E102: 0.5
A103: 102 | B103: Bug | C103: 标尺样式设定问题 | D103: 2022-11-03 | E103: 0.5
A104: 103 | B104: Bug | C104: 图库模式过滤筛选、颗粒编辑 | D104: 2022-11-03 | E104: 0.5
A105: 104 | B105: Bug | C105: 默认规程 | D105: 2022-11-04 | E105: 0.5
A106: 105 | B106: Bug | C106: 规程设置菜单 | D106: 2022-11-04 | E106: 0.5
A107: 106 | B107: Bug | C107: 分析范围 | D107: 2022-11-04 | E107: 0.5
A108: 107 | B108: Bug | C108: 是否删除扫描小图处理 | D108: 2022-11-04 | E108: 0.5
A109: 108 | B109: Bug | C109: 高度测量 | D109: 2022-11-04 | E109: 0.5
A110: 109 | B110: Bug | C110: 信息模板输入 | D110: 2022-11-07 | E110: 0.5
A111: 110 | B111: Bug | C111: 拼图及阴影矫正算法 | D111: 2022-11-07 | E111: 0.5
A112: 111 | B112: Bug | C112: 以标尺为准筛选倍率 | D112: 2022-11-08 | E112: 0.5
A113: 112 | B113: Bug | C113: 物镜转盘设定 | D113: 2022-11-08 | E113: 0.5
A114: 113 | B114: Bug | C114: ComboBox下拉框宽度调整 | D114: 2022-11-08 | E114: 0.5
A115: 114 | B115: Bug | C115: 存储设置 | D115: 2022-11-08 | E115: 0.5
A116: 115 | B116: 会议 | C116: 清洁度相关业务确认及审查 | D116: 2022-11-09 | E116: 0.3
A117: 116 | B117: Bug | C117: 合并项目处理 | D117: 2022-11-09 | E117: 0.5
A118: 117 | B118: Bug | C118: 主工作区Grid列宽可以用户拖动改变 | D118: 2022-11-09 | E118: 0.5
A119: 118 | B119: Bug | C119: 规程设置-相机方案及阴影矫正 | D119: 2022-11-09 | E119: 0.5
A120: 119 | B120: Bug | C120: 规程设置-图片来源，放大倍率问题 | D120: 2022-11-09 | E120: 0.5
A121: 120 | B121: Bug | C121: 颗粒编辑，复原时轮廓丢失问题 | D121: 2022-11-09 | E121: 0.5
A122: 121 | B122: Bug | C122: 不参与计算颗粒类型处理 | D122: 2022-11-09 | E122: 0.5
A123: 122 | B123: 会议 | C123: 清洁度相关业务确认及审查 | D123: 2022-11-10 | E123: 0.3
A124: 123 | B124: Bug | C124: 不参与总体计算问题修改 | D124: 2022-11-10 | E124: 0.5
A125: 124 | B125: Bug | C125: 规程管理 | D125: 2022-11-10 | E125: 0.5
A126: 125 | B126: Bug | C126: 规程设置 | D126: 2022-11-10 | E126: 0.5
A127: 126 | B127: Bug | C127: 测量算法修正 | D127: 2022-11-11 | E127: 0.5
A128: 127 | B128: 需求增加 | C128: 颗粒参看功能，可放大缩小视场范围 | D128: 2022-11-14 | E128: 3
A129: 128 | B129: Bug | C129: 颗粒编辑 | D129: 2022-11-15 | E129: 0.5
A130: 129 | B130: Bug | C130: 颗粒编辑 | D130: 2022-11-15 | E130: 0.5
A131: 130 | B131: Bug | C131: 颗粒查看 | D131: 2022-11-15 | E131: 0.5
A132: 131 | B132: Bug | C132: 实时预览 | D132: 2022-11-15 | E132: 0.5
A133: 132 | B133: Bug | C133: 相机预览 | D133: 2022-11-15 | E133: 0.5
A134: 133 | B134: Bug | C134: 通用设置 | D134: 2022-11-16 | E134: 0.5
A135: 134 | B135: Bug | C135: 图库模式性能优化 | D135: 2022-11-16 | E135: 0.5
A136: 135 | B136: Bug | C136: 阴影矫正 | D136: 2022-11-16 | E136: 0.5
A137: 136 | B137: Bug | C137: 颗粒编辑 | D137: 2022-11-16 | E137: 0.5
A138: 137 | B138: Bug | C138: 通用设置 | D138: 2022-11-17 | E138: 0.5
A139: 138 | B139: Bug | C139: 分析范围设定 | D139: 2022-11-17 | E139: 0.5
A140: 139 | B140: Bug | C140: 图库模式 | D140: 2022-11-17 | E140: 0.5
A141: 140 | B141: Bug | C141: 物相提取交互 | D141: 2022-11-18 | E141: 0.5
A142: 141 | B142: 需求增加 | C142: 物相提取设定画面 | D142: 2022-11-18 | E142: 4
A143: 142 | B143: Bug | C143: 物相提取交互（预览与实际压缩比例同步） | D143: 2022-11-21 | E143: 0.5
A144: 143 | B144: Bug | C144: 物相提取交互 | D144: 2022-11-21 | E144: 0.5
A145: 144 | B145: Bug | C145: 物相提取设定交互画面 | D145: 2022-11-21 | E145: 0.5
A146: 145 | B146: Bug | C146: 物相提取交互 | D146: 2022-11-22 | E146: 0.5
A147: 146 | B147: Bug | C147: 颗粒编辑 | D147: 2022-11-22 | E147: 0.5

Sheet 王新贺审核修改
A1: 序号 | B1: 类型 | C1: 工作内容 | D1: 日期 | E1: 用时（天）
A2: 1 | B2: 会议 | C2: 《Metis2框架下开发经验分享及代码审查》 | D2: 2022-05-26 | E2: 0.4
A3: 2 | B3: 会议 | C3: 《清洁度项目开发例会》 | D3: 2022-06-30 | E3: 0.2
A4: 3 | B4: 会议 | C4: 《清洁度培训会议》 | D4: 2022-09-02 | E4: 0.4
A5: 4 | B5: 会议 | C5: 《清洁度会议》 | D5: 2022-09-22 | E5: 0.3
A6: 5 | B6: 会议 | C6: 《清洁度会议》 | D6: 2022-11-09 | E6: 0.3
A7: 7 | B7: 会议 | C7: 开会讨论图库模式及报告中所需图片的处理方式 | D7: 2022-07-08 | E7: 0.2
A8: 8 | B8: 会议 | C8: 参加清洁度数据结构调整会议 | D8: 2022-07-19 | E8: 0.3
A9: 9 | B9: 会议 | C9: 参加清洁度会议 | D9: 2022-08-04 | E9: 0.2
A10: 10 | B10: 会议 | C10: 参加清洁度项目会议 | D10: 2022-08-23 | E10: 0.2
A11: 11 | B11: 会议 | C11: 参加清洁度会议 | D11: 2022-09-27 | E11: 0.3
A12: 12 | B12: 会议 | C12: 参加清洁度会议 | D12: 2022-10-11 | E12: 0.2
A13: 13 | B13: 会议 | C13: 参加清洁度会议 | D13: 2022-10-18 | E13: 0.2
A14: 14 | B14: 会议 | C14: 与沙哥沟通测试书编写 | D14: 2022-11-08 | E14: 0.2
A15: 15 | B15: 会议 | C15: 参加清洁度会议纪要问题讨论会议 | D15: 2022-11-10 | E15: 0.3
A16: 16 | B16: 审核修改 | C16: 常规设置画面 | D16: 2022-11-21 | E16: 2.5
A17: 17 | B17: 审核修改 | C17: 客户管理画面 | D17: 2022-09-10 | E17: 2
A18: 18 | B18: 审核修改 | C18: 零部件管理 | D18: 2022-08-19 | E18: 2.5
A19: 19 | B19: 审核修改 | C19: 操作者管理画面 | D19: 2022-08-25 | E19: 2
A20: 20 | B20: 审核修改 | C20: 权限管理画面 | D20: 2022-09-20 | E20: 3
A21: 21 | B21: 审核修改 | C21: 帮助目录画面 | D21: 2022-10-26 | E21: 2
A22: 22 | B22: 审核修改 | C22: 关于画面 | D22: 2022-08-15 | E22: 0.4

Sheet 王琦2022年12月工作计划
B1: 王琦12月工作计划
B2: No. | C2: 工作内容 | D2: 负责人 | E2: 开始时间 | F2: 结束时间
B3: 1 | C3: 自动聚焦、聚焦补偿程序测试，问题修正。 | D3: 王琦 | E3: 2022-12-05 | F3: 2022-12-09
B4: 2 | C4: 颗粒定位（实时预览时，将样品台移动到颗粒位置）。 | D4: 王琦 | E4: 2022-12-08 | F4: 2022-12-09
B5: 2 | C5: 修改规程切换时不保存设置参数问题。 | D5: 王琦 | E5: 2022-12-12 | F5: 2022-12-14
B6: 3 | C6: 查找规程更改后，点击标尺标定报错问题。 | D6: 王琦 | E6: 2022-12-13 | F6: 2022-12-15
B7: 4 | C7: 永新样品台0.7接口到位后，调试和测试阴影矫正功能功能是否可行，如果不行还需要宋部长对程序进行修正。 | D7: 王琦 | E7: 2022-12-14 | F7: 2022-12-30
B8: 5 | C8: 颗粒编辑后，重新计算报错问题跟踪和解决。 | D8: 王琦 | E8: 2022-12-14 | F8: 2022-12-16
B9: 6 | C9: 宋部长计划16号将拼图程序发布一个新版本，收到版本程序后进行程序调试和测试，如果还有问题继续与宋部长沟通改正问题。 | D9: 王琦 | E9: 2022-12-19 | F9: 2022-12-30
B10: 7 | C10: 规程管理代码的熟悉和清洁度程序联调过程中发现问题处理等。 | D10: 王琦 | E10: 2022-12-05 | F10: 2022-12-30

Sheet 宋珊珊2022年12月工作计划
A1: 序号 | B1: 工作内容 | C1: 开始时间 | D1: 结束时间
A2: 1 | B2: 梳理检测分析业务逻辑 | C2: 2022-12-05 | D2: 2022-12-06
A3: 2 | B3: 完成检测模块测试书
A4: 3 | B4: 设置模块测试书编写 | C4: 2022-12-07 | D4: 2022-12-08
A5: 4 | B5: 梳理设置模块逻辑
A6: 5 | B6: 测试书编写过程中发现Bug修改及功能优化处理 | C6: 2022-12-09 | D6: 2022-12-09
A7: 6 | B7: 检测时的范围设定及物相提取处理方式调研 | C7: 2022-12-12 | D7: 2022-12-12
A8: 7 | B8: 项目文件中涉及使用规程处理方式调研 | C8: 2022-12-13 | D8: 2022-12-13
A9: 8 | B9: 项目浏览、标尺样式、快捷键设置等功能的剩余编码工作 | C9: 2022-12-14 | D9: 2022-12-16
A10: 9 | B10: 物相提取等大界面需要优化 | C10: 2022-12-19 | D10: 2022-12-20
A11: 10 | B11: 标签选择画面剩余默认选项优化等剩余编码工作 | C11: 2022-12-21 | D11: 2022-12-22
A12: 11 | B12: 清洁度编码设置画面、用户信息画面剩余编码工作 | C12: 2022-12-23 | D12: 2022-12-23
A13: 12 | B13: 存储设置画面、磁盘清理功能界面剩余编码工作（主要中存储项目组织优化） | C13: 2022-12-26 | D13: 2022-12-27
A14: 13 | B14: 报告数据源优化，动态配置 | C14: 2022-12-28 | D14: 2022-12-29
A15: 14 | B15: 调用Metis的相关窗体异常问题处理 | C15: 2022-12-30 | D15: 2022-12-30

Sheet 王新贺2022年12月工作计划
A1: 王新贺12月工作计划
A2: No. | B2: 工作内容 | C2: 负责人 | D2: 开始时间 | E2: 结束时间
A3: 1 | B3: 部件管控模块编码 | C3: 王新贺 | D3: 2022-12-05 | E3: 2022-12-09
A4: 2 | B4: 常规设置优化修改 | C4: 王新贺 | D4: 2022-12-12 | E4: 2022-12-16
A5: 3 | B5: 客户管理优化修改 | C5: 王新贺 | D5: 2022-12-12 | E5: 2022-12-14
A6: 4 | B6: 权限管理画面优化修改 | C6: 王新贺 | D6: 2022-12-19 | E6: 2022-12-23
A7: 5 | B7: 操作者管理优化修改 | C7: 王新贺 | D7: 2022-12-26 | E7: 2022-12-30
A8: 6 | B8: 帮助目录优化修改 | C8: 王新贺 | D8: 2022-12-19 | E8: 2022-12-30
A9: 7 | B9: 交叉测试修改问题 | C9: 王新贺 | D9: 2022-12-05 | E9: 2022-12-30
